{"text_format":"1","workbook":"xlsx","n_sheets":3,"sheets":["迷路","判定","補助"],"not_rendered":{"charts":0,"images":2,"macros":1,"external_links":0,"defined_names":0,"comments":0,"pivot_tables":0},"unopened":[],"bounds":{"document_bytes":16777216,"sheet_cells":100000,"rows_first":2000,"rows_last":500,"rows_between":2000,"halvings":0,"cell_chars":16384,"cell_head_chars":4096},"cells_cut":0,"cells_raw":0,"read":"whole","date_system":"1900"}

{"sheet":"迷路","index":0,"n_rows":33,"n_cols":59,"rows_kept":33,"cut":false,"hidden":false,"merged":[[26,1,26,8],[25,1,25,8],[13,1,13,2],[14,1,14,2],[15,1,15,2],[14,3,14,4],[13,3,13,4],[24,1,24,2],[15,3,15,4],[9,2,10,2],[5,4,6,4],[9,4,10,4],[0,9,0,58],[1,9,1,58],[0,1,0,4],[5,1,6,1],[9,1,10,1],[5,2,6,2],[3,1,3,2]]}
[null,{"$f":"NOW()","v":"2021-02-25T10:31:47.180"},null,null,null,null,null,null,null,"【迷路に挑戦！】"]
[null,null,null,null,null,null,null,null,null,{"$f":"補助!B28&\"\"","v":"※開始ボタンで挑戦を始めましょう。"}]
[]
[null,"※最大50コマまで",null,null,null,null,null,null,null,"G"]
[null,"縦コマ数","横コマ数",null,"最短移動数"]
[null,30,50,null,{"$f":"IF(補助!B31=\"\",\"\",補助!B31)","v":316}]
[]
[]
[null,"開始(S)","終了(G)",null,"実移動数"]
[null,"右下","左上",null,{"$f":"IF(補助!C31=\"\",\"\",補助!C31)","v":""}]
[]
[]
[]
[null,"開始時刻",null,{"$f":"IF(補助!B34=\"\",\"\",補助!B34)","v":""}]
[null,"終了時刻",null,{"$f":"IF(補助!C34=\"\",\"\",補助!C34)","v":""}]
[null,"所要時間",null,{"$f":"IF(D15=\"\",\"\",D15-D14)","v":""}]
[]
[]
[]
[]
[]
[]
[]
[]
[null,{"$f":"補助!B36&\"\"","v":""}]
[null,"株式会社つくばＩＴパートナー"]
[null,"Copyright © 2017 Tsukuba IT Partner Co., Ltd. All Rights Reserved."]
[]
[]
[]
[]
[]
[null,null,null,null,null,null,null,null,null,null,null,null,null,null,null,null,null,null,null,null,null,null,null,null,null,null,null,null,null,null,null,null,null,null,null,null,null,null,null,null,null,null,null,null,null,null,null,null,null,null,null,null,null,null,null,null,null,null,"S"]

{"sheet":"判定","index":1,"n_rows":33,"n_cols":59,"rows_kept":33,"cut":false,"hidden":true,"merged":[]}
[]
[]
[]
[null,null,null,null,null,null,null,null,null,1001,1001,1001,1002,1002,1002,1003,1003,1003,1003,1003,1003,1003,1004,1004,1004,1004,1004,1004,1004,1004,1004,1004,1005,1005,1005,1005,1005,1005,1006,1007,1007,1008,1004,1004,1004,1004,1009,1010,1010,1011,1011,1011,1011,1009,1009,1012,1012,1012,1013]
[null,null,null,null,null,null,null,null,null,"○",1014,1001,1001,1002,1002,1015,1003,1003,1016,1016,1016,1003,1003,1004,1004,1017,1017,1018,1018,1018,1004,1004,1019,1019,1019,1005,1005,1005,1006,1006,1007,1004,1004,1020,1020,1004,1009,1009,1010,1010,1010,1011,1011,1009,1009,1009,1021,1012,1013]
[null,null,null,null,null,null,null,null,null,"○","○","○",1001,1001,1015,1015,1003,1003,1003,1016,1016,1003,1003,1017,1017,1017,1017,1022,1018,1018,1004,1019,1019,1019,1019,1023,1023,1023,1006,1006,1007,1004,1004,1004,1004,1004,1009,1009,1010,1010,1010,1010,1010,1009,1009,1009,1021,1012,1013]
[null,null,null,null,null,null,null,null,null,"○","○","○","○",1001,"○","○",1003,1003,1003,1016,1016,1003,1003,1003,1003,1022,1022,1022,1024,1024,1004,1004,1004,1025,1023,1023,1023,1006,1006,1026,1007,1004,1004,1004,1004,1027,1009,1010,1010,1010,1010,1010,1010,1009,1009,1009,1021,1012,1012]
[null,null,null,null,null,null,null,null,null,1028,1028,1028,"○",1001,"○","○",1029,1003,1003,1016,1016,1003,1003,1003,1003,1022,1022,1030,1030,1024,1004,1004,1004,1023,1023,1023,1023,1006,1006,1026,1007,1004,1004,1004,1031,1009,1009,1009,1009,1009,1009,1009,1009,1009,1009,1009,1021,1021,1012]
[null,null,null,null,null,null,null,null,null,1028,1028,1028,"○","○","○","○","○",1032,1022,1022,1022,1022,1022,1022,1022,1022,1022,1030,1030,1024,1024,1024,1004,1023,1023,1023,1006,1006,1006,1007,1007,1004,1004,1004,1031,1009,1009,1009,1033,1033,1033,1033,1033,1012,1012,1012,1012,1021,1012]
[null,null,null,null,null,null,null,null,null,1028,1028,1028,1034,1034,1034,1034,"○",1032,1022,1022,1022,1022,1022,1022,1024,1024,1024,1024,1024,1024,1024,1024,1004,1035,1035,1035,1006,1006,1006,1007,1007,1004,1004,1004,1031,1009,1009,1033,1033,1033,1033,1033,1033,1012,1012,1012,1012,1012,1012]
[null,null,null,null,null,null,null,null,null,1028,1028,1028,1036,1034,1034,1034,"○","○","○","○","○",1022,1022,1022,1024,1024,1024,1024,1037,1037,1004,1004,1004,1038,1038,1035,1035,1035,1006,1039,1006,1006,1006,1004,1004,1004,1004,1033,1033,1033,1033,1033,1033,1040,1012,1012,1041,1012,1012]
[null,null,null,null,null,null,null,null,null,1042,1042,1036,1036,1034,1034,1034,"○","○",1043,"○","○",1022,1022,1022,1024,1024,1037,1037,1037,1037,1004,1004,1004,1004,1038,1035,1035,1035,1006,1006,1006,1044,1004,1004,1004,1004,1004,1004,1033,1033,1033,1033,1033,1033,1033,1033,1041,1012,1012]
[null,null,null,null,null,null,null,null,null,1042,1042,1036,1034,1034,1034,1034,"○","○","○","○","○","○","○","○",1037,1037,1037,1045,1046,1046,1046,1045,1045,1004,1038,1038,1038,1035,1006,1006,1044,1044,1004,1004,1004,1004,1004,1004,1047,1033,1033,1033,1033,1033,1033,1033,1041,1041,1048]
[null,null,null,null,null,null,null,null,null,1036,1036,1036,1034,1049,1049,"○","○","○","○","○","○",1050,1050,"○","○","○","○",1045,1045,1045,1045,1045,1004,1004,1004,1004,1038,1035,1035,1035,1035,1035,1035,1035,1004,1004,1004,1004,1047,1047,1047,1047,1047,1047,1033,1033,1041,1041,1048]
[null,null,null,null,null,null,null,null,null,1036,1036,1036,1034,1049,1049,"○","○","○","○","○","○",1051,"○","○","○","○","○","○","○","○",1052,1053,1004,1004,1004,1004,1038,1004,1004,1035,1035,1035,1035,1035,1004,1004,1004,1004,1054,1047,1047,1047,1047,1047,1033,1033,1033,1033,1048]
[null,null,null,null,null,null,null,null,null,1055,1056,1036,1034,1057,1057,"○","○","○","○",1058,"○","○","○","○","○","○","○","○","○","○",1052,1053,1004,1004,1004,1004,1038,1004,1004,1004,1004,1004,1004,1004,1004,1004,1004,1004,1054,1047,1047,1047,1047,1047,1059,1033,1033,1033,1048]
[null,null,null,null,null,null,null,null,null,1055,1036,1036,1034,1057,1057,"○","○","○","○","○","○","○","○",1060,"○","○","○",1052,1052,1052,1052,1052,1061,1061,1004,1004,1038,1004,1062,1063,1063,1063,1063,1004,1004,1004,1004,1004,1054,1047,1047,1047,1047,1047,1059,1033,1033,1033,1048]
[null,null,null,null,null,null,null,null,null,1055,1036,1036,1034,1034,1064,1064,1064,1034,1034,1065,1065,1065,"○",1060,"○","○","○",1052,1052,1052,1066,1052,1061,1061,1067,1004,1004,1004,1062,1062,1062,1062,1063,1063,1063,1063,1063,1063,1054,1047,1047,1047,1047,1059,1059,1033,1033,1048,1048]
[null,null,null,null,null,null,null,null,null,1036,1036,1036,1068,1034,1034,1034,1034,1034,1034,1069,"○","○","○",1060,"○","○","○",1052,1052,1052,1052,1052,1061,1067,1067,1067,1070,1070,1062,1062,1062,1062,1063,1063,1054,1054,1063,1063,1054,1054,1047,1047,1047,1059,1033,1033,1033,1048,1048]
[null,null,null,null,null,null,null,null,null,1036,1036,1036,1036,1036,1036,1034,1034,1034,1034,1069,"○","○",1060,1060,"○",1071,"○",1052,1052,1052,1052,1072,1061,1067,1067,1067,1067,1067,1054,1054,1054,1054,1063,1063,1054,1054,1054,1054,1073,1054,1074,1059,1059,1059,1033,1033,1033,1048,1048]
[null,null,null,null,null,null,null,null,null,1036,1036,1036,1036,1075,1036,1036,"○","○",1069,1069,"○","○","○","○","○","○","○",1076,1076,1072,1072,1072,1061,1077,1067,1067,1067,1067,1054,1054,1054,1054,1063,1063,1054,1054,1078,1054,1073,1054,1074,1059,1059,1059,1059,1079,1079,1048,1048]
[null,null,null,null,null,null,null,null,null,1036,1080,1080,1036,1036,1036,1036,"○","○","○","○","○","○","○",1081,1081,"○",1076,1076,1076,1072,1072,1072,1061,1077,1077,1077,1067,1067,1054,1054,1054,1054,1054,1054,1054,1054,1078,1054,1073,1054,1074,1059,1059,1059,1059,1082,1048,1048,1048]
[null,null,null,null,null,null,null,null,null,1036,1036,1080,1036,1036,"○","○","○","○","○","○","○","○","○",1083,"○","○",1076,1076,1076,1076,1072,1072,1061,1061,1061,1077,1077,1061,1061,1061,1061,1061,1061,1078,1078,1078,1078,1054,1054,1054,1074,1084,1084,1059,1059,1059,1048,1085,1048]
[null,null,null,null,null,null,null,null,null,1086,1036,1036,1036,"○","○",1087,1087,1088,1088,1088,1088,1089,"○","○","○",1090,1090,1076,1076,1076,1076,1076,1061,1061,1061,1061,1061,1061,1061,1061,1061,1061,1061,1078,1078,1078,1091,1054,1054,1092,1074,1074,1084,1059,1059,1059,1048,1048,1048]
[null,null,null,null,null,null,null,null,null,1086,1086,"○","○","○","○",1093,1087,1088,1088,1094,1088,1088,1088,1095,1095,1095,"○","○","○",1076,1076,1076,1061,1061,1096,1096,1096,1096,1061,1061,1061,1061,1061,1078,1078,1078,1078,1097,1074,1074,1074,1074,1059,1059,1059,1059,1059,1098,1098]
[null,null,null,null,null,null,null,null,null,"○","○","○","○","○","○","○",1087,1099,1099,"○","○","○",1088,"○","○","○","○",1100,"○","○",1101,1076,1076,1076,1096,1096,1096,1096,1096,1096,1102,1061,1061,1078,1078,1078,1078,1097,1074,1074,1074,1074,1059,1103,1059,1059,1059,1059,1098]
[null,null,null,null,null,null,null,null,null,"○","○",1104,1104,"○","○","○",1087,1099,1099,"○","○","○","○","○",1105,1105,1106,1100,"○","○",1101,1076,1076,1076,1096,1096,1096,1096,1096,1096,"○","○",1078,1078,1107,1097,1097,1097,1108,1074,1074,1059,1059,1103,1059,1059,1059,1059,1098]
[null,null,null,null,null,null,null,null,null,1109,"○","○",1104,"○","○",1110,1087,1087,1087,1087,"○",1105,1105,1105,1105,1105,1100,1100,"○","○","○","○","○","○","○","○",1111,1111,"○","○","○","○","○",1107,1107,1097,1097,1097,1097,1112,1112,1059,1059,1059,1059,1059,1059,1098,1098]
[null,null,null,null,null,null,null,null,null,1109,1109,"○",1104,"○","○",1110,1110,1110,1110,1087,"○",1105,1105,1105,1105,1105,1100,1100,1100,1100,"○","○","○","○","○","○","○","○","○",1113,1113,"○","○","○","○",1097,1097,1097,1097,1097,1112,1112,1112,1112,1112,1059,1059,1098,1098]
[null,null,null,null,null,null,null,null,null,"○","○","○",1104,"○","○","○",1114,1087,1087,1087,"○",1115,1105,1105,1116,1116,1116,1116,1100,1100,"○",1117,"○",1118,"○","○","○","○","○",1119,"○","○","○","○","○",1097,1097,1097,1097,1097,1120,"○","○",1112,1112,1059,1059,1121,1098]
[null,null,null,null,null,null,null,null,null,"○","○","○","○","○",1122,"○",1114,1087,"○","○","○","○",1105,1105,1123,1116,1116,1116,1124,"○","○",1117,"○","○","○","○","○",1125,1125,1119,"○","○","○","○","○","○","○",1097,1097,"○","○","○","○","○",1126,1126,1098,1098,1098]
[null,null,null,null,null,null,null,null,null,"○",1127,1127,"○","○","○","○","○",1087,"○","○",1128,"○",1123,1123,1123,1116,1116,1124,1124,"○","○","○","○","○","○","○",1129,1119,1119,1119,1130,"○","○","○",1131,"○","○","○","○","○","○","○","○","○","○","○",1098,1098,1098]
[null,null,null,null,null,null,null,null,null,"○","○","○","○","○","○",1132,"○","○","○","○","○","○",1123,1123,1133,1116,1116,1124,1124,"○","○","○","○",1119,1119,1119,1119,1119,1134,1134,1130,1130,"○","○",1131,"○","○","○","○","○","○","○","○","○","○","○","○","○","○"]

{"sheet":"補助","index":2,"n_rows":2503,"n_cols":20,"rows_kept":2503,"cut":false,"hidden":true,"merged":[[1,18,1,19],[1,10,1,16],[20,1,20,3],[1,6,1,8],[2,12,2,13],[2,14,2,15],[8,1,8,3],[12,1,12,3],[16,1,16,3]]}
[null,null,null,null,null,null,null,null,null,null,{"$f":"COUNTIF(L:L,0)","v":0}]
[null,null,null,null,null,null,"順路",null,null,null,"空領域",null,null,null,null,null,null,null,"現在位置"]
[null,null,"縦","横",null,"順","縦","横","向",null,"領域番号","連結","開始",null,"終了",null,"ｺﾏ数",null,"縦","横"]
[{"$f":"IF(迷路!$B$10=B4,A3,A3+1)","v":1},"左上",{"$f":"ROW(迷路!K4)","v":4},{"$f":"COLUMN(迷路!J4)","v":10},null,1,33,58,"←",null,1001,1,4,10,8,14,9,null,33,59]
[{"$f":"IF(迷路!$B$10=B5,A4,A4+1)","v":2},"右上",{"$f":"C4","v":4},{"$f":"D4+C11-1","v":59},null,{"$f":"F4+1","v":2},33,57,"←",null,1002,1,4,13,5,15,5]
[{"$f":"IF(迷路!$B$10=B6,A5,A5+1)","v":2},"右下",{"$f":"C4+B11-1","v":33},{"$f":"D5","v":59},null,{"$f":"F5+1","v":3},33,56,"↑",null,1003,1,4,16,8,25,29]
[{"$f":"IF(迷路!$B$10=B7,A6,A6+1)","v":3},"左下",{"$f":"C6","v":33},{"$f":"D4","v":10},null,4,32,56,"←",null,1004,1,4,23,18,38,116]
[null,null,null,null,null,5,32,55,"↓",null,1005,1,4,33,5,38,9]
[null,"縦横マス数",null,null,null,6,33,55,"←",null,1006,1,4,39,13,40,24]
[null,"縦","横","総マス",null,7,33,54,"←",null,1007,1,4,40,10,41,10]
[null,{"$f":"迷路!B6","v":30},{"$f":"迷路!C6","v":50},{"$f":"B11*C11","v":1500},null,8,33,53,"↑",null,1008,1,4,42,4,42,1]
[null,null,null,null,null,9,32,53,"→",null,1009,1,4,47,10,47,33]
[null,"開始",null,null,null,10,32,54,"↑",null,1010,1,4,48,7,53,16]
[null,"位置","縦","横",null,11,31,54,"←",null,1011,1,4,50,5,53,6]
[null,{"$f":"迷路!B10","v":"右下"},{"$f":"VLOOKUP($B15,補助!$B$4:$D$7,2,FALSE)","v":33},{"$f":"VLOOKUP($B15,補助!$B$4:$D$7,3,FALSE)","v":59},null,12,31,53,"↑",null,1012,1,4,56,12,59,25]
[null,null,null,null,null,13,30,53,"←",null,1013,1,4,59,6,59,3]
[null,"終了",null,null,null,14,30,52,"↓",null,1014,1,5,11,5,11,1]
[null,"位置","縦","横",null,15,31,52,"↓",null,1015,1,5,16,6,16,3]
[null,{"$f":"迷路!C10","v":"左上"},{"$f":"VLOOKUP($B19,補助!$B$4:$D$7,2,FALSE)","v":4},{"$f":"VLOOKUP($B19,補助!$B$4:$D$7,3,FALSE)","v":10},null,16,32,52,"↓",null,1016,1,5,19,8,21,9]
[null,null,null,null,null,17,33,52,"←",null,1017,1,5,26,6,27,6]
[null,"枠終了",null,null,null,18,33,51,"↑",null,1018,1,5,28,6,30,5]
[null,"位置","縦","横",null,19,32,51,"↑",null,1019,1,5,33,6,35,7]
[null,"右下",{"$f":"VLOOKUP($B23,補助!$B$4:$D$7,2,FALSE)","v":33},{"$f":"VLOOKUP($B23,補助!$B$4:$D$7,3,FALSE)","v":59},null,20,31,51,"←",null,1020,1,5,44,5,45,2]
[null,null,null,null,null,21,31,50,"↓",null,1021,1,5,57,9,58,6]
[null,"領域番号","連結",null,null,22,32,50,"↓",null,1022,1,6,28,12,24,27]
[null,1119,{"$f":"IF(ISNUMBER(B26)=FALSE,1,IFERROR(VLOOKUP(B26,K:L,2,FALSE),\"\"))","v":1},null,null,23,33,50,"←",null,1023,1,6,36,9,36,13]
[null,null,null,null,null,24,33,49,"↑",null,1024,1,7,29,12,26,20]
[null,"※開始ボタンで挑戦を始めましょう。",null,null,null,25,32,49,"←",null,1025,1,7,34,7,34,1]
[null,null,null,null,null,26,32,48,"↓",null,1026,1,7,40,8,40,2]
[null,"正解移動数","実移動数",null,null,27,33,48,"←",null,1027,1,7,46,7,46,1]
[null,316,null,null,null,28,33,47,"←",null,1028,1,8,10,11,12,12]
[null,null,null,null,null,29,33,46,"↑",null,1029,1,8,17,8,17,1]
[null,"開始時間","終了時間",null,null,30,32,46,"→",null,1030,1,8,28,9,29,4]
[null,null,null,null,null,31,32,47,"↑",null,1031,1,8,45,10,45,3]
[null,null,null,null,null,32,31,47,"←",null,1032,1,9,18,10,18,2]
[null,null,null,null,null,33,31,46,"←",null,1033,1,9,49,20,57,52]
[null,null,null,null,null,34,31,45,"↑",null,1034,1,10,13,20,19,32]
[1,{"$f":"VLOOKUP(A38,$A$4:$B$7,2,FALSE)","v":"左上"},null,null,null,35,30,45,"↑",null,1035,1,10,34,15,44,22]
[2,{"$f":"VLOOKUP(A39,$A$4:$B$7,2,FALSE)","v":"右上"},null,null,null,36,29,45,"←",null,1036,1,11,13,24,13,42]
[3,"左下",null,null,null,37,29,44,"↓",null,1037,1,11,29,13,27,9]
[null,null,null,null,null,38,30,44,"←",null,1038,1,11,34,17,37,10]
[null,false,null,null,null,39,30,43,"↓",null,1039,1,11,40,11,40,1]
[null,null,null,null,null,40,31,43,"→",null,1040,1,11,54,11,54,1]
[null,null,null,null,null,41,31,44,"↓",null,1041,1,11,57,14,58,6]
[null,null,null,null,null,42,32,44,"↓",null,1042,1,12,10,13,11,4]
[null,null,null,null,null,43,33,44,"←",null,1043,1,12,19,12,19,1]
[null,null,null,null,null,44,33,43,"↑",null,1044,1,12,42,13,42,3]
[null,null,null,null,null,45,32,43,"←",null,1045,1,13,28,14,32,8]
[null,null,null,null,null,46,32,42,"↑",null,1046,1,13,29,13,31,3]
[null,null,null,null,null,47,31,42,"←",null,1047,1,13,49,19,53,29]
[null,null,null,null,null,48,31,41,"↑",null,1048,1,13,59,24,59,21]
[null,null,null,null,null,49,30,41,"→",null,1049,1,14,14,15,15,4]
[null,null,null,null,null,50,30,42,"↑",null,1050,1,14,22,14,23,2]
[null,null,null,null,null,51,29,42,"→",null,1051,1,15,22,15,22,1]
[null,null,null,null,null,52,29,43,"↑",null,1052,1,15,31,20,31,20]
[null,null,null,null,null,53,28,43,"←",null,1053,1,15,32,16,32,2]
[null,null,null,null,null,54,28,42,"↑",null,1054,1,15,49,24,49,40]
[null,null,null,null,null,55,27,42,"←",null,1055,1,16,10,18,10,3]
[null,null,null,null,null,56,27,41,"↓",null,1056,1,16,11,16,11,1]
[null,null,null,null,null,57,28,41,"←",null,1057,1,16,14,17,15,4]
[null,null,null,null,null,58,28,40,"←",null,1058,1,16,20,16,20,1]
[null,null,null,null,null,59,28,39,"↓",null,1059,1,16,55,30,57,48]
[null,null,null,null,null,60,29,39,"↓",null,1060,1,17,24,20,24,5]
[null,null,null,null,null,61,30,39,"←",null,1061,1,17,33,26,43,37]
[null,null,null,null,null,62,30,38,"↑",null,1062,1,17,39,19,42,9]
[null,null,null,null,null,63,29,38,"←",null,1063,1,17,40,21,44,18]
[null,null,null,null,null,64,29,37,"←",null,1064,1,18,15,18,17,3]
[null,null,null,null,null,65,29,36,"↑",null,1065,1,18,20,18,22,3]
[null,null,null,null,null,66,28,36,"←",null,1066,1,18,31,18,31,1]
[null,null,null,null,null,{"$f":"F69+1","v":67},28,35,"↓",null,1067,1,18,35,22,38,15]
[null,null,null,null,null,68,29,35,"←",null,1068,1,19,13,19,13,1]
[null,null,null,null,null,69,29,34,"↑",null,1069,1,19,20,21,20,4]
[null,null,null,null,null,70,28,34,"←",null,1070,1,19,37,19,38,2]
[null,null,null,null,null,71,28,33,"↓",null,1071,1,20,26,20,26,1]
[null,null,null,null,null,72,29,33,"↓",null,1072,1,20,32,23,32,9]
[null,null,null,null,null,73,30,33,"↓",null,1073,1,20,49,22,49,3]
[null,null,null,null,null,74,31,33,"→",null,1074,1,20,51,27,51,16]
[null,null,null,null,null,75,31,34,"→",null,1075,1,21,14,21,14,1]
[null,null,null,null,null,76,31,35,"↑",null,1076,1,21,28,27,34,23]
[null,null,null,null,null,77,30,35,"→",null,1077,1,21,34,23,37,6]
[null,null,null,null,null,78,30,36,"→",null,1078,1,21,47,27,44,19]
[null,null,null,null,null,79,30,37,"↓",null,1079,1,21,56,21,57,2]
[null,null,null,null,null,80,31,37,"←",null,1080,1,22,11,23,12,3]
[null,null,null,null,null,81,31,36,"↓",null,1081,1,22,24,22,25,2]
[null,null,null,null,null,82,32,36,"←",null,1082,1,22,56,22,56,1]
[null,null,null,null,null,83,32,35,"←",null,1083,1,23,24,23,24,1]
[null,null,null,null,null,84,32,34,"←",null,1084,1,23,52,24,53,3]
[null,null,null,null,null,85,32,33,"↓",null,1085,1,23,58,23,58,1]
[null,null,null,null,null,86,33,33,"←",null,1086,1,24,10,25,11,3]
[null,null,null,null,null,87,33,32,"↑",null,1087,1,24,16,32,18,15]
[null,null,null,null,null,88,32,32,"←",null,1088,1,24,18,26,23,10]
[null,null,null,null,null,89,32,31,"↓",null,1089,1,24,22,24,22,1]
[null,null,null,null,null,90,33,31,"←",null,1090,1,24,26,24,27,2]
[null,null,null,null,null,91,33,30,"↑",null,1091,1,24,47,24,47,1]
[null,null,null,null,null,92,32,30,"↑",null,1092,1,24,50,24,50,1]
[null,null,null,null,null,93,31,30,"→",null,1093,1,25,16,25,16,1]
[null,null,null,null,null,94,31,31,"↑",null,1094,1,25,20,25,20,1]
[null,null,null,null,null,95,30,31,"↑",null,1095,1,25,24,25,26,3]
[null,null,null,null,null,96,29,31,"→",null,1096,1,25,35,27,40,16]
[null,null,null,null,null,97,29,32,"↑",null,1097,1,25,48,31,49,21]
[null,null,null,null,null,98,28,32,"←",null,1098,1,25,58,32,59,15]
[null,null,null,null,null,99,28,31,"←",null,1099,1,26,18,27,19,4]
[null,null,null,null,null,100,28,30,"←",null,1100,1,26,28,30,30,10]
[null,null,null,null,null,101,28,29,"↑",null,1101,1,26,31,27,31,2]
[null,null,null,null,null,102,27,29,"→",null,1102,1,26,41,26,41,1]
[null,null,null,null,null,103,27,30,"↑",null,1103,1,26,54,27,54,2]
[null,null,null,null,null,104,26,30,"←",null,1104,1,27,12,30,13,5]
[null,null,null,null,null,105,26,29,"↑",null,1105,1,27,25,31,24,16]
[null,null,null,null,null,106,25,29,"←",null,1106,1,27,27,27,27,1]
[null,null,null,null,null,107,25,28,"←",null,1107,1,27,45,28,45,3]
[null,null,null,null,null,108,25,27,"↓",null,1108,1,27,49,27,49,1]
[null,null,null,null,null,109,26,27,"←",null,1109,1,28,10,29,11,3]
[null,null,null,null,null,110,26,26,"←",null,1110,1,28,16,29,19,5]
[null,null,null,null,null,111,26,25,"←",null,1111,1,28,37,28,38,2]
[null,null,null,null,null,112,26,24,"↓",null,1112,1,28,50,30,55,9]
[null,null,null,null,null,113,27,24,"←",null,1113,1,29,40,29,41,2]
[null,null,null,null,null,114,27,23,"←",null,1114,1,30,17,31,17,2]
[null,null,null,null,null,115,27,22,"↑",null,1115,1,30,22,30,22,1]
[null,null,null,null,null,116,26,22,"←",null,1116,1,30,25,33,27,11]
[null,null,null,null,null,117,26,21,"←",null,1117,1,30,32,31,32,2]
[null,null,null,null,null,118,26,20,"↓",null,1118,1,30,34,30,34,1]
[null,null,null,null,null,119,27,20,"→",null,1119,1,30,40,33,38,10]
[null,null,null,null,null,120,27,21,"↓",null,1120,1,30,51,30,51,1]
[null,null,null,null,null,121,28,21,"↓",null,1121,1,30,58,30,58,1]
[null,null,null,null,null,122,29,21,"↓",null,1122,1,31,15,31,15,1]
[null,null,null,null,null,123,30,21,"↓",null,1123,1,31,25,33,24,6]
[null,null,null,null,null,124,31,21,"→",null,1124,1,31,29,33,29,5]
[null,null,null,null,null,125,31,22,"↓",null,1125,1,31,38,31,39,2]
[null,null,null,null,null,126,32,22,"↓",null,1126,1,31,55,31,56,2]
[null,null,null,null,null,127,33,22,"←",null,1127,1,32,11,32,12,2]
[null,null,null,null,null,128,33,21,"←",null,1128,1,32,21,32,21,1]
[null,null,null,null,null,129,33,20,"↑",null,1129,1,32,37,32,37,1]
[null,null,null,null,null,130,32,20,"↑",null,1130,1,32,41,33,42,3]
[null,null,null,null,null,{"$f":"F133+1","v":131},31,20,"←",null,1131,1,32,45,33,45,2]
[null,null,null,null,null,132,31,19,"↓",null,1132,1,33,16,33,16,1]
[null,null,null,null,null,133,32,19,"↓",null,1133,1,33,25,33,25,1]
[null,null,null,null,null,134,33,19,"←",null,1134,1,33,39,33,40,2]
[null,null,null,null,null,135,33,18,"←"]
[null,null,null,null,null,136,33,17,"↑"]
[null,null,null,null,null,137,32,17,"←"]
[null,null,null,null,null,138,32,16,"↑"]
[null,null,null,null,null,139,31,16,"↑"]
[null,null,null,null,null,140,30,16,"←"]
[null,null,null,null,null,141,30,15,"↑"]
[null,null,null,null,null,142,29,15,"←"]
[null,null,null,null,null,143,29,14,"↓"]
[null,null,null,null,null,144,30,14,"↓"]
[null,null,null,null,null,145,31,14,"←"]
[null,null,null,null,null,146,31,13,"↓"]
[null,null,null,null,null,147,32,13,"→"]
[null,null,null,null,null,148,32,14,"→"]
[null,null,null,null,null,149,32,15,"↓"]
[null,null,null,null,null,150,33,15,"←"]
[null,null,null,null,null,151,33,14,"←"]
[null,null,null,null,null,152,33,13,"←"]
[null,null,null,null,null,153,33,12,"←"]
[null,null,null,null,null,154,33,11,"←"]
[null,null,null,null,null,155,33,10,"↑"]
[null,null,null,null,null,156,32,10,"↑"]
[null,null,null,null,null,157,31,10,"↑"]
[null,null,null,null,null,158,30,10,"→"]
[null,null,null,null,null,159,30,11,"↓"]
[null,null,null,null,null,160,31,11,"→"]
[null,null,null,null,null,161,31,12,"↑"]
[null,null,null,null,null,162,30,12,"↑"]
[null,null,null,null,null,163,29,12,"↑"]
[null,null,null,null,null,164,28,12,"←"]
[null,null,null,null,null,165,28,11,"↑"]
[null,null,null,null,null,166,27,11,"←"]
[null,null,null,null,null,167,27,10,"↑"]
[null,null,null,null,null,168,26,10,"→"]
[null,null,null,null,null,169,26,11,"→"]
[null,null,null,null,null,170,26,12,"↑"]
[null,null,null,null,null,171,25,12,"→"]
[null,null,null,null,null,172,25,13,"↓"]
[null,null,null,null,null,173,26,13,"→"]
[null,null,null,null,null,174,26,14,"↓"]
[null,null,null,null,null,175,27,14,"↓"]
[null,null,null,null,null,176,28,14,"→"]
[null,null,null,null,null,177,28,15,"↑"]
[null,null,null,null,null,178,27,15,"→"]
[null,null,null,null,null,179,27,16,"↑"]
[null,null,null,null,null,180,26,16,"←"]
[null,null,null,null,null,181,26,15,"↑"]
[null,null,null,null,null,182,25,15,"←"]
[null,null,null,null,null,183,25,14,"↑"]
[null,null,null,null,null,184,24,14,"→"]
[null,null,null,null,null,185,24,15,"↑"]
[null,null,null,null,null,186,23,15,"→"]
[null,null,null,null,null,187,23,16,"→"]
[null,null,null,null,null,188,23,17,"↑"]
[null,null,null,null,null,189,22,17,"↑"]
[null,null,null,null,null,190,21,17,"→"]
[null,null,null,null,null,191,21,18,"↓"]
[null,null,null,null,null,192,22,18,"↓"]
[null,null,null,null,null,193,23,18,"→"]
[null,null,null,null,null,194,23,19,"↑"]
[null,null,null,null,null,{"$f":"F197+1","v":195},22,19,"→"]
[null,null,null,null,null,196,22,20,"↓"]
[null,null,null,null,null,197,23,20,"→"]
[null,null,null,null,null,198,23,21,"↑"]
[null,null,null,null,null,199,22,21,"↑"]
[null,null,null,null,null,200,21,21,"→"]
[null,null,null,null,null,201,21,22,"↑"]
[null,null,null,null,null,202,20,22,"←"]
[null,null,null,null,null,203,20,21,"↑"]
[null,null,null,null,null,204,19,21,"→"]
[null,null,null,null,null,205,19,22,"→"]
[null,null,null,null,null,206,19,23,"↑"]
[null,null,null,null,null,207,18,23,"↑"]
[null,null,null,null,null,208,17,23,"↑"]
[null,null,null,null,null,209,16,23,"↑"]
[null,null,null,null,null,210,15,23,"→"]
[null,null,null,null,null,211,15,24,"↓"]
[null,null,null,null,null,212,16,24,"→"]
[null,null,null,null,null,213,16,25,"→"]
[null,null,null,null,null,214,16,26,"↓"]
[null,null,null,null,null,215,17,26,"←"]
[null,null,null,null,null,216,17,25,"↓"]
[null,null,null,null,null,217,18,25,"↓"]
[null,null,null,null,null,218,19,25,"↓"]
[null,null,null,null,null,219,20,25,"↓"]
[null,null,null,null,null,220,21,25,"←"]
[null,null,null,null,null,221,21,24,"←"]
[null,null,null,null,null,222,21,23,"↓"]
[null,null,null,null,null,223,22,23,"←"]
[null,null,null,null,null,224,22,22,"↓"]
[null,null,null,null,null,225,23,22,"→"]
[null,null,null,null,null,226,23,23,"↓"]
[null,null,null,null,null,227,24,23,"→"]
[null,null,null,null,null,228,24,24,"→"]
[null,null,null,null,null,229,24,25,"↑"]
[null,null,null,null,null,230,23,25,"→"]
[null,null,null,null,null,231,23,26,"↑"]
[null,null,null,null,null,232,22,26,"↑"]
[null,null,null,null,null,233,21,26,"→"]
[null,null,null,null,null,234,21,27,"↑"]
[null,null,null,null,null,235,20,27,"↑"]
[null,null,null,null,null,236,19,27,"←"]
[null,null,null,null,null,237,19,26,"↑"]
[null,null,null,null,null,238,18,26,"→"]
[null,null,null,null,null,239,18,27,"↑"]
[null,null,null,null,null,240,17,27,"↑"]
[null,null,null,null,null,241,16,27,"→"]
[null,null,null,null,null,242,16,28,"→"]
[null,null,null,null,null,243,16,29,"→"]
[null,null,null,null,null,244,16,30,"↑"]
[null,null,null,null,null,245,15,30,"←"]
[null,null,null,null,null,246,15,29,"←"]
[null,null,null,null,null,247,15,28,"←"]
[null,null,null,null,null,248,15,27,"↑"]
[null,null,null,null,null,249,14,27,"←"]
[null,null,null,null,null,250,14,26,"↓"]
[null,null,null,null,null,251,15,26,"←"]
[null,null,null,null,null,252,15,25,"↑"]
[null,null,null,null,null,253,14,25,"←"]
[null,null,null,null,null,254,14,24,"↑"]
[null,null,null,null,null,255,13,24,"←"]
[null,null,null,null,null,256,13,23,"←"]
[null,null,null,null,null,257,13,22,"←"]
[null,null,null,null,null,258,13,21,"↓"]
[null,null,null,null,null,{"$f":"F261+1","v":259},14,21,"←"]
[null,null,null,null,null,260,14,20,"↓"]
[null,null,null,null,null,261,15,20,"→"]
[null,null,null,null,null,262,15,21,"↓"]
[null,null,null,null,null,263,16,21,"→"]
[null,null,null,null,null,264,16,22,"↓"]
[null,null,null,null,null,265,17,22,"←"]
[null,null,null,null,null,266,17,21,"←"]
[null,null,null,null,null,267,17,20,"←"]
[null,null,null,null,null,268,17,19,"←"]
[null,null,null,null,null,269,17,18,"←"]
[null,null,null,null,null,270,17,17,"←"]
[null,null,null,null,null,271,17,16,"↑"]
[null,null,null,null,null,272,16,16,"→"]
[null,null,null,null,null,273,16,17,"→"]
[null,null,null,null,null,274,16,18,"→"]
[null,null,null,null,null,275,16,19,"↑"]
[null,null,null,null,null,276,15,19,"←"]
[null,null,null,null,null,277,15,18,"←"]
[null,null,null,null,null,278,15,17,"←"]
[null,null,null,null,null,279,15,16,"↑"]
[null,null,null,null,null,280,14,16,"→"]
[null,null,null,null,null,281,14,17,"↑"]
[null,null,null,null,null,282,13,17,"↑"]
[null,null,null,null,null,283,12,17,"→"]
[null,null,null,null,null,284,12,18,"↓"]
[null,null,null,null,null,285,13,18,"↓"]
[null,null,null,null,null,286,14,18,"→"]
[null,null,null,null,null,287,14,19,"↑"]
[null,null,null,null,null,288,13,19,"→"]
[null,null,null,null,null,289,13,20,"↑"]
[null,null,null,null,null,290,12,20,"→"]
[null,null,null,null,null,291,12,21,"↑"]
[null,null,null,null,null,292,11,21,"←"]
[null,null,null,null,null,293,11,20,"←"]
[null,null,null,null,null,294,11,19,"←"]
[null,null,null,null,null,295,11,18,"←"]
[null,null,null,null,null,296,11,17,"↑"]
[null,null,null,null,null,297,10,17,"↑"]
[null,null,null,null,null,298,9,17,"←"]
[null,null,null,null,null,299,9,16,"↑"]
[null,null,null,null,null,300,8,16,"↑"]
[null,null,null,null,null,301,7,16,"←"]
[null,null,null,null,null,302,7,15,"↓"]
[null,null,null,null,null,303,8,15,"↓"]
[null,null,null,null,null,304,9,15,"←"]
[null,null,null,null,null,305,9,14,"←"]
[null,null,null,null,null,306,9,13,"↑"]
[null,null,null,null,null,307,8,13,"↑"]
[null,null,null,null,null,308,7,13,"←"]
[null,null,null,null,null,309,7,12,"↑"]
[null,null,null,null,null,310,6,12,"←"]
[null,null,null,null,null,311,6,11,"↓"]
[null,null,null,null,null,312,7,11,"←"]
[null,null,null,null,null,313,7,10,"↑"]
[null,null,null,null,null,314,6,10,"↑"]
[null,null,null,null,null,315,5,10,"↑"]
[null,null,null,null,null,316,4,10]
[null,null,null,null,null,317]
[null,null,null,null,null,318]
[null,null,null,null,null,319]
[null,null,null,null,null,320]
[null,null,null,null,null,321]
[null,null,null,null,null,322]
[null,null,null,null,null,{"$f":"F325+1","v":323}]
[null,null,null,null,null,324]
[null,null,null,null,null,325]
[null,null,null,null,null,326]
[null,null,null,null,null,327]
[null,null,null,null,null,328]
[null,null,null,null,null,329]
[null,null,null,null,null,330]
[null,null,null,null,null,331]
[null,null,null,null,null,332]
[null,null,null,null,null,333]
[null,null,null,null,null,334]
[null,null,null,null,null,335]
[null,null,null,null,null,336]
[null,null,null,null,null,337]
[null,null,null,null,null,338]
[null,null,null,null,null,339]
[null,null,null,null,null,340]
[null,null,null,null,null,341]
[null,null,null,null,null,342]
[null,null,null,null,null,343]
[null,null,null,null,null,344]
[null,null,null,null,null,345]
[null,null,null,null,null,346]
[null,null,null,null,null,347]
[null,null,null,null,null,348]
[null,null,null,null,null,349]
[null,null,null,null,null,350]
[null,null,null,null,null,351]
[null,null,null,null,null,352]
[null,null,null,null,null,353]
[null,null,null,null,null,354]
[null,null,null,null,null,355]
[null,null,null,null,null,356]
[null,null,null,null,null,357]
[null,null,null,null,null,358]
[null,null,null,null,null,359]
[null,null,null,null,null,360]
[null,null,null,null,null,361]
[null,null,null,null,null,362]
[null,null,null,null,null,363]
[null,null,null,null,null,364]
[null,null,null,null,null,365]
[null,null,null,null,null,366]
[null,null,null,null,null,367]
[null,null,null,null,null,368]
[null,null,null,null,null,369]
[null,null,null,null,null,370]
[null,null,null,null,null,371]
[null,null,null,null,null,372]
[null,null,null,null,null,373]
[null,null,null,null,null,374]
[null,null,null,null,null,375]
[null,null,null,null,null,376]
[null,null,null,null,null,377]
[null,null,null,null,null,378]
[null,null,null,null,null,379]
[null,null,null,null,null,380]
[null,null,null,null,null,381]
[null,null,null,null,null,382]
[null,null,null,null,null,383]
[null,null,null,null,null,384]
[null,null,null,null,null,385]
[null,null,null,null,null,386]
[null,null,null,null,null,{"$f":"F389+1","v":387}]
[null,null,null,null,null,388]
[null,null,null,null,null,389]
[null,null,null,null,null,390]
[null,null,null,null,null,391]
[null,null,null,null,null,392]
[null,null,null,null,null,393]
[null,null,null,null,null,394]
[null,null,null,null,null,395]
[null,null,null,null,null,396]
[null,null,null,null,null,397]
[null,null,null,null,null,398]
[null,null,null,null,null,399]
[null,null,null,null,null,400]
[null,null,null,null,null,401]
[null,null,null,null,null,402]
[null,null,null,null,null,403]
[null,null,null,null,null,404]
[null,null,null,null,null,405]
[null,null,null,null,null,406]
[null,null,null,null,null,407]
[null,null,null,null,null,408]
[null,null,null,null,null,409]
[null,null,null,null,null,410]
[null,null,null,null,null,411]
[null,null,null,null,null,412]
[null,null,null,null,null,413]
[null,null,null,null,null,414]
[null,null,null,null,null,415]
[null,null,null,null,null,416]
[null,null,null,null,null,417]
[null,null,null,null,null,418]
[null,null,null,null,null,419]
[null,null,null,null,null,420]
[null,null,null,null,null,421]
[null,null,null,null,null,422]
[null,null,null,null,null,423]
[null,null,null,null,null,424]
[null,null,null,null,null,425]
[null,null,null,null,null,426]
[null,null,null,null,null,427]
[null,null,null,null,null,428]
[null,null,null,null,null,429]
[null,null,null,null,null,430]
[null,null,null,null,null,431]
[null,null,null,null,null,432]
[null,null,null,null,null,433]
[null,null,null,null,null,434]
[null,null,null,null,null,435]
[null,null,null,null,null,436]
[null,null,null,null,null,437]
[null,null,null,null,null,438]
[null,null,null,null,null,439]
[null,null,null,null,null,440]
[null,null,null,null,null,441]
[null,null,null,null,null,442]
[null,null,null,null,null,443]
[null,null,null,null,null,444]
[null,null,null,null,null,445]
[null,null,null,null,null,446]
[null,null,null,null,null,447]
[null,null,null,null,null,448]
[null,null,null,null,null,449]
[null,null,null,null,null,450]
[null,null,null,null,null,{"$f":"F453+1","v":451}]
[null,null,null,null,null,452]
[null,null,null,null,null,453]
[null,null,null,null,null,454]
[null,null,null,null,null,455]
[null,null,null,null,null,456]
[null,null,null,null,null,457]
[null,null,null,null,null,458]
[null,null,null,null,null,459]
[null,null,null,null,null,460]
[null,null,null,null,null,461]
[null,null,null,null,null,462]
[null,null,null,null,null,463]
[null,null,null,null,null,464]
[null,null,null,null,null,465]
[null,null,null,null,null,466]
[null,null,null,null,null,467]
[null,null,null,null,null,468]
[null,null,null,null,null,469]
[null,null,null,null,null,470]
[null,null,null,null,null,471]
[null,null,null,null,null,472]
[null,null,null,null,null,473]
[null,null,null,null,null,474]
[null,null,null,null,null,475]
[null,null,null,null,null,476]
[null,null,null,null,null,477]
[null,null,null,null,null,478]
[null,null,null,null,null,479]
[null,null,null,null,null,480]
[null,null,null,null,null,481]
[null,null,null,null,null,482]
[null,null,null,null,null,483]
[null,null,null,null,null,484]
[null,null,null,null,null,485]
[null,null,null,null,null,486]
[null,null,null,null,null,487]
[null,null,null,null,null,488]
[null,null,null,null,null,489]
[null,null,null,null,null,490]
[null,null,null,null,null,491]
[null,null,null,null,null,492]
[null,null,null,null,null,493]
[null,null,null,null,null,494]
[null,null,null,null,null,495]
[null,null,null,null,null,496]
[null,null,null,null,null,497]
[null,null,null,null,null,498]
[null,null,null,null,null,499]
[null,null,null,null,null,500]
[null,null,null,null,null,501]
[null,null,null,null,null,502]
[null,null,null,null,null,503]
[null,null,null,null,null,504]
[null,null,null,null,null,505]
[null,null,null,null,null,506]
[null,null,null,null,null,507]
[null,null,null,null,null,508]
[null,null,null,null,null,509]
[null,null,null,null,null,510]
[null,null,null,null,null,511]
[null,null,null,null,null,512]
[null,null,null,null,null,513]
[null,null,null,null,null,514]
[null,null,null,null,null,{"$f":"F517+1","v":515}]
[null,null,null,null,null,516]
[null,null,null,null,null,517]
[null,null,null,null,null,518]
[null,null,null,null,null,519]
[null,null,null,null,null,520]
[null,null,null,null,null,521]
[null,null,null,null,null,522]
[null,null,null,null,null,523]
[null,null,null,null,null,524]
[null,null,null,null,null,525]
[null,null,null,null,null,526]
[null,null,null,null,null,527]
[null,null,null,null,null,528]
[null,null,null,null,null,529]
[null,null,null,null,null,530]
[null,null,null,null,null,531]
[null,null,null,null,null,532]
[null,null,null,null,null,533]
[null,null,null,null,null,534]
[null,null,null,null,null,535]
[null,null,null,null,null,536]
[null,null,null,null,null,537]
[null,null,null,null,null,538]
[null,null,null,null,null,539]
[null,null,null,null,null,540]
[null,null,null,null,null,541]
[null,null,null,null,null,542]
[null,null,null,null,null,543]
[null,null,null,null,null,544]
[null,null,null,null,null,545]
[null,null,null,null,null,546]
[null,null,null,null,null,547]
[null,null,null,null,null,548]
[null,null,null,null,null,549]
[null,null,null,null,null,550]
[null,null,null,null,null,551]
[null,null,null,null,null,552]
[null,null,null,null,null,553]
[null,null,null,null,null,554]
[null,null,null,null,null,555]
[null,null,null,null,null,556]
[null,null,null,null,null,557]
[null,null,null,null,null,558]
[null,null,null,null,null,559]
[null,null,null,null,null,560]
[null,null,null,null,null,561]
[null,null,null,null,null,562]
[null,null,null,null,null,563]
[null,null,null,null,null,564]
[null,null,null,null,null,565]
[null,null,null,null,null,566]
[null,null,null,null,null,567]
[null,null,null,null,null,568]
[null,null,null,null,null,569]
[null,null,null,null,null,570]
[null,null,null,null,null,571]
[null,null,null,null,null,572]
[null,null,null,null,null,573]
[null,null,null,null,null,574]
[null,null,null,null,null,575]
[null,null,null,null,null,576]
[null,null,null,null,null,577]
[null,null,null,null,null,578]
[null,null,null,null,null,{"$f":"F581+1","v":579}]
[null,null,null,null,null,580]
[null,null,null,null,null,581]
[null,null,null,null,null,582]
[null,null,null,null,null,583]
[null,null,null,null,null,584]
[null,null,null,null,null,585]
[null,null,null,null,null,586]
[null,null,null,null,null,587]
[null,null,null,null,null,588]
[null,null,null,null,null,589]
[null,null,null,null,null,590]
[null,null,null,null,null,591]
[null,null,null,null,null,592]
[null,null,null,null,null,593]
[null,null,null,null,null,594]
[null,null,null,null,null,595]
[null,null,null,null,null,596]
[null,null,null,null,null,597]
[null,null,null,null,null,598]
[null,null,null,null,null,599]
[null,null,null,null,null,600]
[null,null,null,null,null,601]
[null,null,null,null,null,602]
[null,null,null,null,null,603]
[null,null,null,null,null,604]
[null,null,null,null,null,605]
[null,null,null,null,null,606]
[null,null,null,null,null,607]
[null,null,null,null,null,608]
[null,null,null,null,null,609]
[null,null,null,null,null,610]
[null,null,null,null,null,611]
[null,null,null,null,null,612]
[null,null,null,null,null,613]
[null,null,null,null,null,614]
[null,null,null,null,null,615]
[null,null,null,null,null,616]
[null,null,null,null,null,617]
[null,null,null,null,null,618]
[null,null,null,null,null,619]
[null,null,null,null,null,620]
[null,null,null,null,null,621]
[null,null,null,null,null,622]
[null,null,null,null,null,623]
[null,null,null,null,null,624]
[null,null,null,null,null,625]
[null,null,null,null,null,626]
[null,null,null,null,null,627]
[null,null,null,null,null,628]
[null,null,null,null,null,629]
[null,null,null,null,null,630]
[null,null,null,null,null,631]
[null,null,null,null,null,632]
[null,null,null,null,null,633]
[null,null,null,null,null,634]
[null,null,null,null,null,635]
[null,null,null,null,null,636]
[null,null,null,null,null,637]
[null,null,null,null,null,638]
[null,null,null,null,null,639]
[null,null,null,null,null,640]
[null,null,null,null,null,641]
[null,null,null,null,null,642]
[null,null,null,null,null,{"$f":"F645+1","v":643}]
[null,null,null,null,null,644]
[null,null,null,null,null,645]
[null,null,null,null,null,646]
[null,null,null,null,null,647]
[null,null,null,null,null,648]
[null,null,null,null,null,649]
[null,null,null,null,null,650]
[null,null,null,null,null,651]
[null,null,null,null,null,652]
[null,null,null,null,null,653]
[null,null,null,null,null,654]
[null,null,null,null,null,655]
[null,null,null,null,null,656]
[null,null,null,null,null,657]
[null,null,null,null,null,658]
[null,null,null,null,null,659]
[null,null,null,null,null,660]
[null,null,null,null,null,661]
[null,null,null,null,null,662]
[null,null,null,null,null,663]
[null,null,null,null,null,664]
[null,null,null,null,null,665]
[null,null,null,null,null,666]
[null,null,null,null,null,667]
[null,null,null,null,null,668]
[null,null,null,null,null,669]
[null,null,null,null,null,670]
[null,null,null,null,null,671]
[null,null,null,null,null,672]
[null,null,null,null,null,673]
[null,null,null,null,null,674]
[null,null,null,null,null,675]
[null,null,null,null,null,676]
[null,null,null,null,null,677]
[null,null,null,null,null,678]
[null,null,null,null,null,679]
[null,null,null,null,null,680]
[null,null,null,null,null,681]
[null,null,null,null,null,682]
[null,null,null,null,null,683]
[null,null,null,null,null,684]
[null,null,null,null,null,685]
[null,null,null,null,null,686]
[null,null,null,null,null,687]
[null,null,null,null,null,688]
[null,null,null,null,null,689]
[null,null,null,null,null,690]
[null,null,null,null,null,691]
[null,null,null,null,null,692]
[null,null,null,null,null,693]
[null,null,null,null,null,694]
[null,null,null,null,null,695]
[null,null,null,null,null,696]
[null,null,null,null,null,697]
[null,null,null,null,null,698]
[null,null,null,null,null,699]
[null,null,null,null,null,700]
[null,null,null,null,null,701]
[null,null,null,null,null,702]
[null,null,null,null,null,703]
[null,null,null,null,null,704]
[null,null,null,null,null,705]
[null,null,null,null,null,706]
[null,null,null,null,null,{"$f":"F709+1","v":707}]
[null,null,null,null,null,708]
[null,null,null,null,null,709]
[null,null,null,null,null,710]
[null,null,null,null,null,711]
[null,null,null,null,null,712]
[null,null,null,null,null,713]
[null,null,null,null,null,714]
[null,null,null,null,null,715]
[null,null,null,null,null,716]
[null,null,null,null,null,717]
[null,null,null,null,null,718]
[null,null,null,null,null,719]
[null,null,null,null,null,720]
[null,null,null,null,null,721]
[null,null,null,null,null,722]
[null,null,null,null,null,723]
[null,null,null,null,null,724]
[null,null,null,null,null,725]
[null,null,null,null,null,726]
[null,null,null,null,null,727]
[null,null,null,null,null,728]
[null,null,null,null,null,729]
[null,null,null,null,null,730]
[null,null,null,null,null,731]
[null,null,null,null,null,732]
[null,null,null,null,null,733]
[null,null,null,null,null,734]
[null,null,null,null,null,735]
[null,null,null,null,null,736]
[null,null,null,null,null,737]
[null,null,null,null,null,738]
[null,null,null,null,null,739]
[null,null,null,null,null,740]
[null,null,null,null,null,741]
[null,null,null,null,null,742]
[null,null,null,null,null,743]
[null,null,null,null,null,744]
[null,null,null,null,null,745]
[null,null,null,null,null,746]
[null,null,null,null,null,747]
[null,null,null,null,null,748]
[null,null,null,null,null,749]
[null,null,null,null,null,750]
[null,null,null,null,null,751]
[null,null,null,null,null,752]
[null,null,null,null,null,753]
[null,null,null,null,null,754]
[null,null,null,null,null,755]
[null,null,null,null,null,756]
[null,null,null,null,null,757]
[null,null,null,null,null,758]
[null,null,null,null,null,759]
[null,null,null,null,null,760]
[null,null,null,null,null,761]
[null,null,null,null,null,762]
[null,null,null,null,null,763]
[null,null,null,null,null,764]
[null,null,null,null,null,765]
[null,null,null,null,null,766]
[null,null,null,null,null,767]
[null,null,null,null,null,768]
[null,null,null,null,null,769]
[null,null,null,null,null,770]
[null,null,null,null,null,{"$f":"F773+1","v":771}]
[null,null,null,null,null,772]
[null,null,null,null,null,773]
[null,null,null,null,null,774]
[null,null,null,null,null,775]
[null,null,null,null,null,776]
[null,null,null,null,null,777]
[null,null,null,null,null,778]
[null,null,null,null,null,779]
[null,null,null,null,null,780]
[null,null,null,null,null,781]
[null,null,null,null,null,782]
[null,null,null,null,null,783]
[null,null,null,null,null,784]
[null,null,null,null,null,785]
[null,null,null,null,null,786]
[null,null,null,null,null,787]
[null,null,null,null,null,788]
[null,null,null,null,null,789]
[null,null,null,null,null,790]
[null,null,null,null,null,791]
[null,null,null,null,null,792]
[null,null,null,null,null,793]
[null,null,null,null,null,794]
[null,null,null,null,null,795]
[null,null,null,null,null,796]
[null,null,null,null,null,797]
[null,null,null,null,null,798]
[null,null,null,null,null,799]
[null,null,null,null,null,800]
[null,null,null,null,null,801]
[null,null,null,null,null,802]
[null,null,null,null,null,803]
[null,null,null,null,null,804]
[null,null,null,null,null,805]
[null,null,null,null,null,806]
[null,null,null,null,null,807]
[null,null,null,null,null,808]
[null,null,null,null,null,809]
[null,null,null,null,null,810]
[null,null,null,null,null,811]
[null,null,null,null,null,812]
[null,null,null,null,null,813]
[null,null,null,null,null,814]
[null,null,null,null,null,815]
[null,null,null,null,null,816]
[null,null,null,null,null,817]
[null,null,null,null,null,818]
[null,null,null,null,null,819]
[null,null,null,null,null,820]
[null,null,null,null,null,821]
[null,null,null,null,null,822]
[null,null,null,null,null,823]
[null,null,null,null,null,824]
[null,null,null,null,null,825]
[null,null,null,null,null,826]
[null,null,null,null,null,827]
[null,null,null,null,null,828]
[null,null,null,null,null,829]
[null,null,null,null,null,830]
[null,null,null,null,null,831]
[null,null,null,null,null,832]
[null,null,null,null,null,833]
[null,null,null,null,null,834]
[null,null,null,null,null,{"$f":"F837+1","v":835}]
[null,null,null,null,null,836]
[null,null,null,null,null,837]
[null,null,null,null,null,838]
[null,null,null,null,null,839]
[null,null,null,null,null,840]
[null,null,null,null,null,841]
[null,null,null,null,null,842]
[null,null,null,null,null,843]
[null,null,null,null,null,844]
[null,null,null,null,null,845]
[null,null,null,null,null,846]
[null,null,null,null,null,847]
[null,null,null,null,null,848]
[null,null,null,null,null,849]
[null,null,null,null,null,850]
[null,null,null,null,null,851]
[null,null,null,null,null,852]
[null,null,null,null,null,853]
[null,null,null,null,null,854]
[null,null,null,null,null,855]
[null,null,null,null,null,856]
[null,null,null,null,null,857]
[null,null,null,null,null,858]
[null,null,null,null,null,859]
[null,null,null,null,null,860]
[null,null,null,null,null,861]
[null,null,null,null,null,862]
[null,null,null,null,null,863]
[null,null,null,null,null,864]
[null,null,null,null,null,865]
[null,null,null,null,null,866]
[null,null,null,null,null,867]
[null,null,null,null,null,868]
[null,null,null,null,null,869]
[null,null,null,null,null,870]
[null,null,null,null,null,871]
[null,null,null,null,null,872]
[null,null,null,null,null,873]
[null,null,null,null,null,874]
[null,null,null,null,null,875]
[null,null,null,null,null,876]
[null,null,null,null,null,877]
[null,null,null,null,null,878]
[null,null,null,null,null,879]
[null,null,null,null,null,880]
[null,null,null,null,null,881]
[null,null,null,null,null,882]
[null,null,null,null,null,883]
[null,null,null,null,null,884]
[null,null,null,null,null,885]
[null,null,null,null,null,886]
[null,null,null,null,null,887]
[null,null,null,null,null,888]
[null,null,null,null,null,889]
[null,null,null,null,null,890]
[null,null,null,null,null,891]
[null,null,null,null,null,892]
[null,null,null,null,null,893]
[null,null,null,null,null,894]
[null,null,null,null,null,895]
[null,null,null,null,null,896]
[null,null,null,null,null,897]
[null,null,null,null,null,898]
[null,null,null,null,null,{"$f":"F901+1","v":899}]
[null,null,null,null,null,900]
[null,null,null,null,null,901]
[null,null,null,null,null,902]
[null,null,null,null,null,903]
[null,null,null,null,null,904]
[null,null,null,null,null,905]
[null,null,null,null,null,906]
[null,null,null,null,null,907]
[null,null,null,null,null,908]
[null,null,null,null,null,909]
[null,null,null,null,null,910]
[null,null,null,null,null,911]
[null,null,null,null,null,912]
[null,null,null,null,null,913]
[null,null,null,null,null,914]
[null,null,null,null,null,915]
[null,null,null,null,null,916]
[null,null,null,null,null,917]
[null,null,null,null,null,918]
[null,null,null,null,null,919]
[null,null,null,null,null,920]
[null,null,null,null,null,921]
[null,null,null,null,null,922]
[null,null,null,null,null,923]
[null,null,null,null,null,924]
[null,null,null,null,null,925]
[null,null,null,null,null,926]
[null,null,null,null,null,927]
[null,null,null,null,null,928]
[null,null,null,null,null,929]
[null,null,null,null,null,930]
[null,null,null,null,null,931]
[null,null,null,null,null,932]
[null,null,null,null,null,933]
[null,null,null,null,null,934]
[null,null,null,null,null,935]
[null,null,null,null,null,936]
[null,null,null,null,null,937]
[null,null,null,null,null,938]
[null,null,null,null,null,939]
[null,null,null,null,null,940]
[null,null,null,null,null,941]
[null,null,null,null,null,942]
[null,null,null,null,null,943]
[null,null,null,null,null,944]
[null,null,null,null,null,945]
[null,null,null,null,null,946]
[null,null,null,null,null,947]
[null,null,null,null,null,948]
[null,null,null,null,null,949]
[null,null,null,null,null,950]
[null,null,null,null,null,951]
[null,null,null,null,null,952]
[null,null,null,null,null,953]
[null,null,null,null,null,954]
[null,null,null,null,null,955]
[null,null,null,null,null,956]
[null,null,null,null,null,957]
[null,null,null,null,null,958]
[null,null,null,null,null,959]
[null,null,null,null,null,960]
[null,null,null,null,null,961]
[null,null,null,null,null,962]
[null,null,null,null,null,{"$f":"F965+1","v":963}]
[null,null,null,null,null,964]
[null,null,null,null,null,965]
[null,null,null,null,null,966]
[null,null,null,null,null,967]
[null,null,null,null,null,968]
[null,null,null,null,null,969]
[null,null,null,null,null,970]
[null,null,null,null,null,971]
[null,null,null,null,null,972]
[null,null,null,null,null,973]
[null,null,null,null,null,974]
[null,null,null,null,null,975]
[null,null,null,null,null,976]
[null,null,null,null,null,977]
[null,null,null,null,null,978]
[null,null,null,null,null,979]
[null,null,null,null,null,980]
[null,null,null,null,null,981]
[null,null,null,null,null,982]
[null,null,null,null,null,983]
[null,null,null,null,null,984]
[null,null,null,null,null,985]
[null,null,null,null,null,986]
[null,null,null,null,null,987]
[null,null,null,null,null,988]
[null,null,null,null,null,989]
[null,null,null,null,null,990]
[null,null,null,null,null,991]
[null,null,null,null,null,992]
[null,null,null,null,null,993]
[null,null,null,null,null,994]
[null,null,null,null,null,995]
[null,null,null,null,null,996]
[null,null,null,null,null,997]
[null,null,null,null,null,998]
[null,null,null,null,null,999]
[null,null,null,null,null,1000]
[null,null,null,null,null,1001]
[null,null,null,null,null,1002]
[null,null,null,null,null,1003]
[null,null,null,null,null,1004]
[null,null,null,null,null,1005]
[null,null,null,null,null,1006]
[null,null,null,null,null,1007]
[null,null,null,null,null,1008]
[null,null,null,null,null,1009]
[null,null,null,null,null,1010]
[null,null,null,null,null,1011]
[null,null,null,null,null,1012]
[null,null,null,null,null,1013]
[null,null,null,null,null,1014]
[null,null,null,null,null,1015]
[null,null,null,null,null,1016]
[null,null,null,null,null,1017]
[null,null,null,null,null,1018]
[null,null,null,null,null,1019]
[null,null,null,null,null,1020]
[null,null,null,null,null,1021]
[null,null,null,null,null,1022]
[null,null,null,null,null,1023]
[null,null,null,null,null,1024]
[null,null,null,null,null,1025]
[null,null,null,null,null,1026]
[null,null,null,null,null,{"$f":"F1029+1","v":1027}]
[null,null,null,null,null,1028]
[null,null,null,null,null,1029]
[null,null,null,null,null,1030]
[null,null,null,null,null,1031]
[null,null,null,null,null,1032]
[null,null,null,null,null,1033]
[null,null,null,null,null,1034]
[null,null,null,null,null,1035]
[null,null,null,null,null,1036]
[null,null,null,null,null,1037]
[null,null,null,null,null,1038]
[null,null,null,null,null,1039]
[null,null,null,null,null,1040]
[null,null,null,null,null,1041]
[null,null,null,null,null,1042]
[null,null,null,null,null,1043]
[null,null,null,null,null,1044]
[null,null,null,null,null,1045]
[null,null,null,null,null,1046]
[null,null,null,null,null,1047]
[null,null,null,null,null,1048]
[null,null,null,null,null,1049]
[null,null,null,null,null,1050]
[null,null,null,null,null,1051]
[null,null,null,null,null,1052]
[null,null,null,null,null,1053]
[null,null,null,null,null,1054]
[null,null,null,null,null,1055]
[null,null,null,null,null,1056]
[null,null,null,null,null,1057]
[null,null,null,null,null,1058]
[null,null,null,null,null,1059]
[null,null,null,null,null,1060]
[null,null,null,null,null,1061]
[null,null,null,null,null,1062]
[null,null,null,null,null,1063]
[null,null,null,null,null,1064]
[null,null,null,null,null,1065]
[null,null,null,null,null,1066]
[null,null,null,null,null,1067]
[null,null,null,null,null,1068]
[null,null,null,null,null,1069]
[null,null,null,null,null,1070]
[null,null,null,null,null,1071]
[null,null,null,null,null,1072]
[null,null,null,null,null,1073]
[null,null,null,null,null,1074]
[null,null,null,null,null,1075]
[null,null,null,null,null,1076]
[null,null,null,null,null,1077]
[null,null,null,null,null,1078]
[null,null,null,null,null,1079]
[null,null,null,null,null,1080]
[null,null,null,null,null,1081]
[null,null,null,null,null,1082]
[null,null,null,null,null,1083]
[null,null,null,null,null,1084]
[null,null,null,null,null,1085]
[null,null,null,null,null,1086]
[null,null,null,null,null,1087]
[null,null,null,null,null,1088]
[null,null,null,null,null,1089]
[null,null,null,null,null,1090]
[null,null,null,null,null,{"$f":"F1093+1","v":1091}]
[null,null,null,null,null,1092]
[null,null,null,null,null,1093]
[null,null,null,null,null,1094]
[null,null,null,null,null,1095]
[null,null,null,null,null,1096]
[null,null,null,null,null,1097]
[null,null,null,null,null,1098]
[null,null,null,null,null,1099]
[null,null,null,null,null,1100]
[null,null,null,null,null,1101]
[null,null,null,null,null,1102]
[null,null,null,null,null,1103]
[null,null,null,null,null,1104]
[null,null,null,null,null,1105]
[null,null,null,null,null,1106]
[null,null,null,null,null,1107]
[null,null,null,null,null,1108]
[null,null,null,null,null,1109]
[null,null,null,null,null,1110]
[null,null,null,null,null,1111]
[null,null,null,null,null,1112]
[null,null,null,null,null,1113]
[null,null,null,null,null,1114]
[null,null,null,null,null,1115]
[null,null,null,null,null,1116]
[null,null,null,null,null,1117]
[null,null,null,null,null,1118]
[null,null,null,null,null,1119]
[null,null,null,null,null,1120]
[null,null,null,null,null,1121]
[null,null,null,null,null,1122]
[null,null,null,null,null,1123]
[null,null,null,null,null,1124]
[null,null,null,null,null,1125]
[null,null,null,null,null,1126]
[null,null,null,null,null,1127]
[null,null,null,null,null,1128]
[null,null,null,null,null,1129]
[null,null,null,null,null,1130]
[null,null,null,null,null,1131]
[null,null,null,null,null,1132]
[null,null,null,null,null,1133]
[null,null,null,null,null,1134]
[null,null,null,null,null,1135]
[null,null,null,null,null,1136]
[null,null,null,null,null,1137]
[null,null,null,null,null,1138]
[null,null,null,null,null,1139]
[null,null,null,null,null,1140]
[null,null,null,null,null,1141]
[null,null,null,null,null,1142]
[null,null,null,null,null,1143]
[null,null,null,null,null,1144]
[null,null,null,null,null,1145]
[null,null,null,null,null,1146]
[null,null,null,null,null,1147]
[null,null,null,null,null,1148]
[null,null,null,null,null,1149]
[null,null,null,null,null,1150]
[null,null,null,null,null,1151]
[null,null,null,null,null,1152]
[null,null,null,null,null,1153]
[null,null,null,null,null,1154]
[null,null,null,null,null,{"$f":"F1157+1","v":1155}]
[null,null,null,null,null,1156]
[null,null,null,null,null,1157]
[null,null,null,null,null,1158]
[null,null,null,null,null,1159]
[null,null,null,null,null,1160]
[null,null,null,null,null,1161]
[null,null,null,null,null,1162]
[null,null,null,null,null,1163]
[null,null,null,null,null,1164]
[null,null,null,null,null,1165]
[null,null,null,null,null,1166]
[null,null,null,null,null,1167]
[null,null,null,null,null,1168]
[null,null,null,null,null,1169]
[null,null,null,null,null,1170]
[null,null,null,null,null,1171]
[null,null,null,null,null,1172]
[null,null,null,null,null,1173]
[null,null,null,null,null,1174]
[null,null,null,null,null,1175]
[null,null,null,null,null,1176]
[null,null,null,null,null,1177]
[null,null,null,null,null,1178]
[null,null,null,null,null,1179]
[null,null,null,null,null,1180]
[null,null,null,null,null,1181]
[null,null,null,null,null,1182]
[null,null,null,null,null,1183]
[null,null,null,null,null,1184]
[null,null,null,null,null,1185]
[null,null,null,null,null,1186]
[null,null,null,null,null,1187]
[null,null,null,null,null,1188]
[null,null,null,null,null,1189]
[null,null,null,null,null,1190]
[null,null,null,null,null,1191]
[null,null,null,null,null,1192]
[null,null,null,null,null,1193]
[null,null,null,null,null,1194]
[null,null,null,null,null,1195]
[null,null,null,null,null,1196]
[null,null,null,null,null,1197]
[null,null,null,null,null,1198]
[null,null,null,null,null,1199]
[null,null,null,null,null,1200]
[null,null,null,null,null,1201]
[null,null,null,null,null,1202]
[null,null,null,null,null,1203]
[null,null,null,null,null,1204]
[null,null,null,null,null,1205]
[null,null,null,null,null,1206]
[null,null,null,null,null,1207]
[null,null,null,null,null,1208]
[null,null,null,null,null,1209]
[null,null,null,null,null,1210]
[null,null,null,null,null,1211]
[null,null,null,null,null,1212]
[null,null,null,null,null,1213]
[null,null,null,null,null,1214]
[null,null,null,null,null,1215]
[null,null,null,null,null,1216]
[null,null,null,null,null,1217]
[null,null,null,null,null,1218]
[null,null,null,null,null,{"$f":"F1221+1","v":1219}]
[null,null,null,null,null,1220]
[null,null,null,null,null,1221]
[null,null,null,null,null,1222]
[null,null,null,null,null,1223]
[null,null,null,null,null,1224]
[null,null,null,null,null,1225]
[null,null,null,null,null,1226]
[null,null,null,null,null,1227]
[null,null,null,null,null,1228]
[null,null,null,null,null,1229]
[null,null,null,null,null,1230]
[null,null,null,null,null,1231]
[null,null,null,null,null,1232]
[null,null,null,null,null,1233]
[null,null,null,null,null,1234]
[null,null,null,null,null,1235]
[null,null,null,null,null,1236]
[null,null,null,null,null,1237]
[null,null,null,null,null,1238]
[null,null,null,null,null,1239]
[null,null,null,null,null,1240]
[null,null,null,null,null,1241]
[null,null,null,null,null,1242]
[null,null,null,null,null,1243]
[null,null,null,null,null,1244]
[null,null,null,null,null,1245]
[null,null,null,null,null,1246]
[null,null,null,null,null,1247]
[null,null,null,null,null,1248]
[null,null,null,null,null,1249]
[null,null,null,null,null,1250]
[null,null,null,null,null,1251]
[null,null,null,null,null,1252]
[null,null,null,null,null,1253]
[null,null,null,null,null,1254]
[null,null,null,null,null,1255]
[null,null,null,null,null,1256]
[null,null,null,null,null,1257]
[null,null,null,null,null,1258]
[null,null,null,null,null,1259]
[null,null,null,null,null,1260]
[null,null,null,null,null,1261]
[null,null,null,null,null,1262]
[null,null,null,null,null,1263]
[null,null,null,null,null,1264]
[null,null,null,null,null,1265]
[null,null,null,null,null,1266]
[null,null,null,null,null,1267]
[null,null,null,null,null,1268]
[null,null,null,null,null,1269]
[null,null,null,null,null,1270]
[null,null,null,null,null,1271]
[null,null,null,null,null,1272]
[null,null,null,null,null,1273]
[null,null,null,null,null,1274]
[null,null,null,null,null,1275]
[null,null,null,null,null,1276]
[null,null,null,null,null,1277]
[null,null,null,null,null,1278]
[null,null,null,null,null,1279]
[null,null,null,null,null,1280]
[null,null,null,null,null,1281]
[null,null,null,null,null,1282]
[null,null,null,null,null,{"$f":"F1285+1","v":1283}]
[null,null,null,null,null,1284]
[null,null,null,null,null,1285]
[null,null,null,null,null,1286]
[null,null,null,null,null,1287]
[null,null,null,null,null,1288]
[null,null,null,null,null,1289]
[null,null,null,null,null,1290]
[null,null,null,null,null,1291]
[null,null,null,null,null,1292]
[null,null,null,null,null,1293]
[null,null,null,null,null,1294]
[null,null,null,null,null,1295]
[null,null,null,null,null,1296]
[null,null,null,null,null,1297]
[null,null,null,null,null,1298]
[null,null,null,null,null,1299]
[null,null,null,null,null,1300]
[null,null,null,null,null,1301]
[null,null,null,null,null,1302]
[null,null,null,null,null,1303]
[null,null,null,null,null,1304]
[null,null,null,null,null,1305]
[null,null,null,null,null,1306]
[null,null,null,null,null,1307]
[null,null,null,null,null,1308]
[null,null,null,null,null,1309]
[null,null,null,null,null,1310]
[null,null,null,null,null,1311]
[null,null,null,null,null,1312]
[null,null,null,null,null,1313]
[null,null,null,null,null,1314]
[null,null,null,null,null,1315]
[null,null,null,null,null,1316]
[null,null,null,null,null,1317]
[null,null,null,null,null,1318]
[null,null,null,null,null,1319]
[null,null,null,null,null,1320]
[null,null,null,null,null,1321]
[null,null,null,null,null,1322]
[null,null,null,null,null,1323]
[null,null,null,null,null,1324]
[null,null,null,null,null,1325]
[null,null,null,null,null,1326]
[null,null,null,null,null,1327]
[null,null,null,null,null,1328]
[null,null,null,null,null,1329]
[null,null,null,null,null,1330]
[null,null,null,null,null,1331]
[null,null,null,null,null,1332]
[null,null,null,null,null,1333]
[null,null,null,null,null,1334]
[null,null,null,null,null,1335]
[null,null,null,null,null,1336]
[null,null,null,null,null,1337]
[null,null,null,null,null,1338]
[null,null,null,null,null,1339]
[null,null,null,null,null,1340]
[null,null,null,null,null,1341]
[null,null,null,null,null,1342]
[null,null,null,null,null,1343]
[null,null,null,null,null,1344]
[null,null,null,null,null,1345]
[null,null,null,null,null,1346]
[null,null,null,null,null,{"$f":"F1349+1","v":1347}]
[null,null,null,null,null,1348]
[null,null,null,null,null,1349]
[null,null,null,null,null,1350]
[null,null,null,null,null,1351]
[null,null,null,null,null,1352]
[null,null,null,null,null,1353]
[null,null,null,null,null,1354]
[null,null,null,null,null,1355]
[null,null,null,null,null,1356]
[null,null,null,null,null,1357]
[null,null,null,null,null,1358]
[null,null,null,null,null,1359]
[null,null,null,null,null,1360]
[null,null,null,null,null,1361]
[null,null,null,null,null,1362]
[null,null,null,null,null,1363]
[null,null,null,null,null,1364]
[null,null,null,null,null,1365]
[null,null,null,null,null,1366]
[null,null,null,null,null,1367]
[null,null,null,null,null,1368]
[null,null,null,null,null,1369]
[null,null,null,null,null,1370]
[null,null,null,null,null,1371]
[null,null,null,null,null,1372]
[null,null,null,null,null,1373]
[null,null,null,null,null,1374]
[null,null,null,null,null,1375]
[null,null,null,null,null,1376]
[null,null,null,null,null,1377]
[null,null,null,null,null,1378]
[null,null,null,null,null,1379]
[null,null,null,null,null,1380]
[null,null,null,null,null,1381]
[null,null,null,null,null,1382]
[null,null,null,null,null,1383]
[null,null,null,null,null,1384]
[null,null,null,null,null,1385]
[null,null,null,null,null,1386]
[null,null,null,null,null,1387]
[null,null,null,null,null,1388]
[null,null,null,null,null,1389]
[null,null,null,null,null,1390]
[null,null,null,null,null,1391]
[null,null,null,null,null,1392]
[null,null,null,null,null,1393]
[null,null,null,null,null,1394]
[null,null,null,null,null,1395]
[null,null,null,null,null,1396]
[null,null,null,null,null,1397]
[null,null,null,null,null,1398]
[null,null,null,null,null,1399]
[null,null,null,null,null,1400]
[null,null,null,null,null,1401]
[null,null,null,null,null,1402]
[null,null,null,null,null,1403]
[null,null,null,null,null,1404]
[null,null,null,null,null,1405]
[null,null,null,null,null,1406]
[null,null,null,null,null,1407]
[null,null,null,null,null,1408]
[null,null,null,null,null,1409]
[null,null,null,null,null,1410]
[null,null,null,null,null,{"$f":"F1413+1","v":1411}]
[null,null,null,null,null,1412]
[null,null,null,null,null,1413]
[null,null,null,null,null,1414]
[null,null,null,null,null,1415]
[null,null,null,null,null,1416]
[null,null,null,null,null,1417]
[null,null,null,null,null,1418]
[null,null,null,null,null,1419]
[null,null,null,null,null,1420]
[null,null,null,null,null,1421]
[null,null,null,null,null,1422]
[null,null,null,null,null,1423]
[null,null,null,null,null,1424]
[null,null,null,null,null,1425]
[null,null,null,null,null,1426]
[null,null,null,null,null,1427]
[null,null,null,null,null,1428]
[null,null,null,null,null,1429]
[null,null,null,null,null,1430]
[null,null,null,null,null,1431]
[null,null,null,null,null,1432]
[null,null,null,null,null,1433]
[null,null,null,null,null,1434]
[null,null,null,null,null,1435]
[null,null,null,null,null,1436]
[null,null,null,null,null,1437]
[null,null,null,null,null,1438]
[null,null,null,null,null,1439]
[null,null,null,null,null,1440]
[null,null,null,null,null,1441]
[null,null,null,null,null,1442]
[null,null,null,null,null,1443]
[null,null,null,null,null,1444]
[null,null,null,null,null,1445]
[null,null,null,null,null,1446]
[null,null,null,null,null,1447]
[null,null,null,null,null,1448]
[null,null,null,null,null,1449]
[null,null,null,null,null,1450]
[null,null,null,null,null,1451]
[null,null,null,null,null,1452]
[null,null,null,null,null,1453]
[null,null,null,null,null,1454]
[null,null,null,null,null,1455]
[null,null,null,null,null,1456]
[null,null,null,null,null,1457]
[null,null,null,null,null,1458]
[null,null,null,null,null,1459]
[null,null,null,null,null,1460]
[null,null,null,null,null,1461]
[null,null,null,null,null,1462]
[null,null,null,null,null,1463]
[null,null,null,null,null,1464]
[null,null,null,null,null,1465]
[null,null,null,null,null,1466]
[null,null,null,null,null,1467]
[null,null,null,null,null,1468]
[null,null,null,null,null,1469]
[null,null,null,null,null,1470]
[null,null,null,null,null,1471]
[null,null,null,null,null,1472]
[null,null,null,null,null,1473]
[null,null,null,null,null,1474]
[null,null,null,null,null,{"$f":"F1477+1","v":1475}]
[null,null,null,null,null,1476]
[null,null,null,null,null,1477]
[null,null,null,null,null,1478]
[null,null,null,null,null,1479]
[null,null,null,null,null,1480]
[null,null,null,null,null,1481]
[null,null,null,null,null,1482]
[null,null,null,null,null,1483]
[null,null,null,null,null,1484]
[null,null,null,null,null,1485]
[null,null,null,null,null,1486]
[null,null,null,null,null,1487]
[null,null,null,null,null,1488]
[null,null,null,null,null,1489]
[null,null,null,null,null,1490]
[null,null,null,null,null,1491]
[null,null,null,null,null,1492]
[null,null,null,null,null,1493]
[null,null,null,null,null,1494]
[null,null,null,null,null,1495]
[null,null,null,null,null,1496]
[null,null,null,null,null,1497]
[null,null,null,null,null,1498]
[null,null,null,null,null,1499]
[null,null,null,null,null,1500]
[null,null,null,null,null,1501]
[null,null,null,null,null,1502]
[null,null,null,null,null,1503]
[null,null,null,null,null,1504]
[null,null,null,null,null,1505]
[null,null,null,null,null,1506]
[null,null,null,null,null,1507]
[null,null,null,null,null,1508]
[null,null,null,null,null,1509]
[null,null,null,null,null,1510]
[null,null,null,null,null,1511]
[null,null,null,null,null,1512]
[null,null,null,null,null,1513]
[null,null,null,null,null,1514]
[null,null,null,null,null,1515]
[null,null,null,null,null,1516]
[null,null,null,null,null,1517]
[null,null,null,null,null,1518]
[null,null,null,null,null,1519]
[null,null,null,null,null,1520]
[null,null,null,null,null,1521]
[null,null,null,null,null,1522]
[null,null,null,null,null,1523]
[null,null,null,null,null,1524]
[null,null,null,null,null,1525]
[null,null,null,null,null,1526]
[null,null,null,null,null,1527]
[null,null,null,null,null,1528]
[null,null,null,null,null,1529]
[null,null,null,null,null,1530]
[null,null,null,null,null,1531]
[null,null,null,null,null,1532]
[null,null,null,null,null,1533]
[null,null,null,null,null,1534]
[null,null,null,null,null,1535]
[null,null,null,null,null,1536]
[null,null,null,null,null,1537]
[null,null,null,null,null,1538]
[null,null,null,null,null,{"$f":"F1541+1","v":1539}]
[null,null,null,null,null,1540]
[null,null,null,null,null,1541]
[null,null,null,null,null,1542]
[null,null,null,null,null,1543]
[null,null,null,null,null,1544]
[null,null,null,null,null,1545]
[null,null,null,null,null,1546]
[null,null,null,null,null,1547]
[null,null,null,null,null,1548]
[null,null,null,null,null,1549]
[null,null,null,null,null,1550]
[null,null,null,null,null,1551]
[null,null,null,null,null,1552]
[null,null,null,null,null,1553]
[null,null,null,null,null,1554]
[null,null,null,null,null,1555]
[null,null,null,null,null,1556]
[null,null,null,null,null,1557]
[null,null,null,null,null,1558]
[null,null,null,null,null,1559]
[null,null,null,null,null,1560]
[null,null,null,null,null,1561]
[null,null,null,null,null,1562]
[null,null,null,null,null,1563]
[null,null,null,null,null,1564]
[null,null,null,null,null,1565]
[null,null,null,null,null,1566]
[null,null,null,null,null,1567]
[null,null,null,null,null,1568]
[null,null,null,null,null,1569]
[null,null,null,null,null,1570]
[null,null,null,null,null,1571]
[null,null,null,null,null,1572]
[null,null,null,null,null,1573]
[null,null,null,null,null,1574]
[null,null,null,null,null,1575]
[null,null,null,null,null,1576]
[null,null,null,null,null,1577]
[null,null,null,null,null,1578]
[null,null,null,null,null,1579]
[null,null,null,null,null,1580]
[null,null,null,null,null,1581]
[null,null,null,null,null,1582]
[null,null,null,null,null,1583]
[null,null,null,null,null,1584]
[null,null,null,null,null,1585]
[null,null,null,null,null,1586]
[null,null,null,null,null,1587]
[null,null,null,null,null,1588]
[null,null,null,null,null,1589]
[null,null,null,null,null,1590]
[null,null,null,null,null,1591]
[null,null,null,null,null,1592]
[null,null,null,null,null,1593]
[null,null,null,null,null,1594]
[null,null,null,null,null,1595]
[null,null,null,null,null,1596]
[null,null,null,null,null,1597]
[null,null,null,null,null,1598]
[null,null,null,null,null,1599]
[null,null,null,null,null,1600]
[null,null,null,null,null,1601]
[null,null,null,null,null,1602]
[null,null,null,null,null,{"$f":"F1605+1","v":1603}]
[null,null,null,null,null,1604]
[null,null,null,null,null,1605]
[null,null,null,null,null,1606]
[null,null,null,null,null,1607]
[null,null,null,null,null,1608]
[null,null,null,null,null,1609]
[null,null,null,null,null,1610]
[null,null,null,null,null,1611]
[null,null,null,null,null,1612]
[null,null,null,null,null,1613]
[null,null,null,null,null,1614]
[null,null,null,null,null,1615]
[null,null,null,null,null,1616]
[null,null,null,null,null,1617]
[null,null,null,null,null,1618]
[null,null,null,null,null,1619]
[null,null,null,null,null,1620]
[null,null,null,null,null,1621]
[null,null,null,null,null,1622]
[null,null,null,null,null,1623]
[null,null,null,null,null,1624]
[null,null,null,null,null,1625]
[null,null,null,null,null,1626]
[null,null,null,null,null,1627]
[null,null,null,null,null,1628]
[null,null,null,null,null,1629]
[null,null,null,null,null,1630]
[null,null,null,null,null,1631]
[null,null,null,null,null,1632]
[null,null,null,null,null,1633]
[null,null,null,null,null,1634]
[null,null,null,null,null,1635]
[null,null,null,null,null,1636]
[null,null,null,null,null,1637]
[null,null,null,null,null,1638]
[null,null,null,null,null,1639]
[null,null,null,null,null,1640]
[null,null,null,null,null,1641]
[null,null,null,null,null,1642]
[null,null,null,null,null,1643]
[null,null,null,null,null,1644]
[null,null,null,null,null,1645]
[null,null,null,null,null,1646]
[null,null,null,null,null,1647]
[null,null,null,null,null,1648]
[null,null,null,null,null,1649]
[null,null,null,null,null,1650]
[null,null,null,null,null,1651]
[null,null,null,null,null,1652]
[null,null,null,null,null,1653]
[null,null,null,null,null,1654]
[null,null,null,null,null,1655]
[null,null,null,null,null,1656]
[null,null,null,null,null,1657]
[null,null,null,null,null,1658]
[null,null,null,null,null,1659]
[null,null,null,null,null,1660]
[null,null,null,null,null,1661]
[null,null,null,null,null,1662]
[null,null,null,null,null,1663]
[null,null,null,null,null,1664]
[null,null,null,null,null,1665]
[null,null,null,null,null,1666]
[null,null,null,null,null,{"$f":"F1669+1","v":1667}]
[null,null,null,null,null,1668]
[null,null,null,null,null,1669]
[null,null,null,null,null,1670]
[null,null,null,null,null,1671]
[null,null,null,null,null,1672]
[null,null,null,null,null,1673]
[null,null,null,null,null,1674]
[null,null,null,null,null,1675]
[null,null,null,null,null,1676]
[null,null,null,null,null,1677]
[null,null,null,null,null,1678]
[null,null,null,null,null,1679]
[null,null,null,null,null,1680]
[null,null,null,null,null,1681]
[null,null,null,null,null,1682]
[null,null,null,null,null,1683]
[null,null,null,null,null,1684]
[null,null,null,null,null,1685]
[null,null,null,null,null,1686]
[null,null,null,null,null,1687]
[null,null,null,null,null,1688]
[null,null,null,null,null,1689]
[null,null,null,null,null,1690]
[null,null,null,null,null,1691]
[null,null,null,null,null,1692]
[null,null,null,null,null,1693]
[null,null,null,null,null,1694]
[null,null,null,null,null,1695]
[null,null,null,null,null,1696]
[null,null,null,null,null,1697]
[null,null,null,null,null,1698]
[null,null,null,null,null,1699]
[null,null,null,null,null,1700]
[null,null,null,null,null,1701]
[null,null,null,null,null,1702]
[null,null,null,null,null,1703]
[null,null,null,null,null,1704]
[null,null,null,null,null,1705]
[null,null,null,null,null,1706]
[null,null,null,null,null,1707]
[null,null,null,null,null,1708]
[null,null,null,null,null,1709]
[null,null,null,null,null,1710]
[null,null,null,null,null,1711]
[null,null,null,null,null,1712]
[null,null,null,null,null,1713]
[null,null,null,null,null,1714]
[null,null,null,null,null,1715]
[null,null,null,null,null,1716]
[null,null,null,null,null,1717]
[null,null,null,null,null,1718]
[null,null,null,null,null,1719]
[null,null,null,null,null,1720]
[null,null,null,null,null,1721]
[null,null,null,null,null,1722]
[null,null,null,null,null,1723]
[null,null,null,null,null,1724]
[null,null,null,null,null,1725]
[null,null,null,null,null,1726]
[null,null,null,null,null,1727]
[null,null,null,null,null,1728]
[null,null,null,null,null,1729]
[null,null,null,null,null,1730]
[null,null,null,null,null,{"$f":"F1733+1","v":1731}]
[null,null,null,null,null,1732]
[null,null,null,null,null,1733]
[null,null,null,null,null,1734]
[null,null,null,null,null,1735]
[null,null,null,null,null,1736]
[null,null,null,null,null,1737]
[null,null,null,null,null,1738]
[null,null,null,null,null,1739]
[null,null,null,null,null,1740]
[null,null,null,null,null,1741]
[null,null,null,null,null,1742]
[null,null,null,null,null,1743]
[null,null,null,null,null,1744]
[null,null,null,null,null,1745]
[null,null,null,null,null,1746]
[null,null,null,null,null,1747]
[null,null,null,null,null,1748]
[null,null,null,null,null,1749]
[null,null,null,null,null,1750]
[null,null,null,null,null,1751]
[null,null,null,null,null,1752]
[null,null,null,null,null,1753]
[null,null,null,null,null,1754]
[null,null,null,null,null,1755]
[null,null,null,null,null,1756]
[null,null,null,null,null,1757]
[null,null,null,null,null,1758]
[null,null,null,null,null,1759]
[null,null,null,null,null,1760]
[null,null,null,null,null,1761]
[null,null,null,null,null,1762]
[null,null,null,null,null,1763]
[null,null,null,null,null,1764]
[null,null,null,null,null,1765]
[null,null,null,null,null,1766]
[null,null,null,null,null,1767]
[null,null,null,null,null,1768]
[null,null,null,null,null,1769]
[null,null,null,null,null,1770]
[null,null,null,null,null,1771]
[null,null,null,null,null,1772]
[null,null,null,null,null,1773]
[null,null,null,null,null,1774]
[null,null,null,null,null,1775]
[null,null,null,null,null,1776]
[null,null,null,null,null,1777]
[null,null,null,null,null,1778]
[null,null,null,null,null,1779]
[null,null,null,null,null,1780]
[null,null,null,null,null,1781]
[null,null,null,null,null,1782]
[null,null,null,null,null,1783]
[null,null,null,null,null,1784]
[null,null,null,null,null,1785]
[null,null,null,null,null,1786]
[null,null,null,null,null,1787]
[null,null,null,null,null,1788]
[null,null,null,null,null,1789]
[null,null,null,null,null,1790]
[null,null,null,null,null,1791]
[null,null,null,null,null,1792]
[null,null,null,null,null,1793]
[null,null,null,null,null,1794]
[null,null,null,null,null,{"$f":"F1797+1","v":1795}]
[null,null,null,null,null,1796]
[null,null,null,null,null,1797]
[null,null,null,null,null,1798]
[null,null,null,null,null,1799]
[null,null,null,null,null,1800]
[null,null,null,null,null,1801]
[null,null,null,null,null,1802]
[null,null,null,null,null,1803]
[null,null,null,null,null,1804]
[null,null,null,null,null,1805]
[null,null,null,null,null,1806]
[null,null,null,null,null,1807]
[null,null,null,null,null,1808]
[null,null,null,null,null,1809]
[null,null,null,null,null,1810]
[null,null,null,null,null,1811]
[null,null,null,null,null,1812]
[null,null,null,null,null,1813]
[null,null,null,null,null,1814]
[null,null,null,null,null,1815]
[null,null,null,null,null,1816]
[null,null,null,null,null,1817]
[null,null,null,null,null,1818]
[null,null,null,null,null,1819]
[null,null,null,null,null,1820]
[null,null,null,null,null,1821]
[null,null,null,null,null,1822]
[null,null,null,null,null,1823]
[null,null,null,null,null,1824]
[null,null,null,null,null,1825]
[null,null,null,null,null,1826]
[null,null,null,null,null,1827]
[null,null,null,null,null,1828]
[null,null,null,null,null,1829]
[null,null,null,null,null,1830]
[null,null,null,null,null,1831]
[null,null,null,null,null,1832]
[null,null,null,null,null,1833]
[null,null,null,null,null,1834]
[null,null,null,null,null,1835]
[null,null,null,null,null,1836]
[null,null,null,null,null,1837]
[null,null,null,null,null,1838]
[null,null,null,null,null,1839]
[null,null,null,null,null,1840]
[null,null,null,null,null,1841]
[null,null,null,null,null,1842]
[null,null,null,null,null,1843]
[null,null,null,null,null,1844]
[null,null,null,null,null,1845]
[null,null,null,null,null,1846]
[null,null,null,null,null,1847]
[null,null,null,null,null,1848]
[null,null,null,null,null,1849]
[null,null,null,null,null,1850]
[null,null,null,null,null,1851]
[null,null,null,null,null,1852]
[null,null,null,null,null,1853]
[null,null,null,null,null,1854]
[null,null,null,null,null,1855]
[null,null,null,null,null,1856]
[null,null,null,null,null,1857]
[null,null,null,null,null,1858]
[null,null,null,null,null,{"$f":"F1861+1","v":1859}]
[null,null,null,null,null,1860]
[null,null,null,null,null,1861]
[null,null,null,null,null,1862]
[null,null,null,null,null,1863]
[null,null,null,null,null,1864]
[null,null,null,null,null,1865]
[null,null,null,null,null,1866]
[null,null,null,null,null,1867]
[null,null,null,null,null,1868]
[null,null,null,null,null,1869]
[null,null,null,null,null,1870]
[null,null,null,null,null,1871]
[null,null,null,null,null,1872]
[null,null,null,null,null,1873]
[null,null,null,null,null,1874]
[null,null,null,null,null,1875]
[null,null,null,null,null,1876]
[null,null,null,null,null,1877]
[null,null,null,null,null,1878]
[null,null,null,null,null,1879]
[null,null,null,null,null,1880]
[null,null,null,null,null,1881]
[null,null,null,null,null,1882]
[null,null,null,null,null,1883]
[null,null,null,null,null,1884]
[null,null,null,null,null,1885]
[null,null,null,null,null,1886]
[null,null,null,null,null,1887]
[null,null,null,null,null,1888]
[null,null,null,null,null,1889]
[null,null,null,null,null,1890]
[null,null,null,null,null,1891]
[null,null,null,null,null,1892]
[null,null,null,null,null,1893]
[null,null,null,null,null,1894]
[null,null,null,null,null,1895]
[null,null,null,null,null,1896]
[null,null,null,null,null,1897]
[null,null,null,null,null,1898]
[null,null,null,null,null,1899]
[null,null,null,null,null,1900]
[null,null,null,null,null,1901]
[null,null,null,null,null,1902]
[null,null,null,null,null,1903]
[null,null,null,null,null,1904]
[null,null,null,null,null,1905]
[null,null,null,null,null,1906]
[null,null,null,null,null,1907]
[null,null,null,null,null,1908]
[null,null,null,null,null,1909]
[null,null,null,null,null,1910]
[null,null,null,null,null,1911]
[null,null,null,null,null,1912]
[null,null,null,null,null,1913]
[null,null,null,null,null,1914]
[null,null,null,null,null,1915]
[null,null,null,null,null,1916]
[null,null,null,null,null,1917]
[null,null,null,null,null,1918]
[null,null,null,null,null,1919]
[null,null,null,null,null,1920]
[null,null,null,null,null,1921]
[null,null,null,null,null,1922]
[null,null,null,null,null,{"$f":"F1925+1","v":1923}]
[null,null,null,null,null,1924]
[null,null,null,null,null,1925]
[null,null,null,null,null,1926]
[null,null,null,null,null,1927]
[null,null,null,null,null,1928]
[null,null,null,null,null,1929]
[null,null,null,null,null,1930]
[null,null,null,null,null,1931]
[null,null,null,null,null,1932]
[null,null,null,null,null,1933]
[null,null,null,null,null,1934]
[null,null,null,null,null,1935]
[null,null,null,null,null,1936]
[null,null,null,null,null,1937]
[null,null,null,null,null,1938]
[null,null,null,null,null,1939]
[null,null,null,null,null,1940]
[null,null,null,null,null,1941]
[null,null,null,null,null,1942]
[null,null,null,null,null,1943]
[null,null,null,null,null,1944]
[null,null,null,null,null,1945]
[null,null,null,null,null,1946]
[null,null,null,null,null,1947]
[null,null,null,null,null,1948]
[null,null,null,null,null,1949]
[null,null,null,null,null,1950]
[null,null,null,null,null,1951]
[null,null,null,null,null,1952]
[null,null,null,null,null,1953]
[null,null,null,null,null,1954]
[null,null,null,null,null,1955]
[null,null,null,null,null,1956]
[null,null,null,null,null,1957]
[null,null,null,null,null,1958]
[null,null,null,null,null,1959]
[null,null,null,null,null,1960]
[null,null,null,null,null,1961]
[null,null,null,null,null,1962]
[null,null,null,null,null,1963]
[null,null,null,null,null,1964]
[null,null,null,null,null,1965]
[null,null,null,null,null,1966]
[null,null,null,null,null,1967]
[null,null,null,null,null,1968]
[null,null,null,null,null,1969]
[null,null,null,null,null,1970]
[null,null,null,null,null,1971]
[null,null,null,null,null,1972]
[null,null,null,null,null,1973]
[null,null,null,null,null,1974]
[null,null,null,null,null,1975]
[null,null,null,null,null,1976]
[null,null,null,null,null,1977]
[null,null,null,null,null,1978]
[null,null,null,null,null,1979]
[null,null,null,null,null,1980]
[null,null,null,null,null,1981]
[null,null,null,null,null,1982]
[null,null,null,null,null,1983]
[null,null,null,null,null,1984]
[null,null,null,null,null,1985]
[null,null,null,null,null,1986]
[null,null,null,null,null,{"$f":"F1989+1","v":1987}]
[null,null,null,null,null,1988]
[null,null,null,null,null,1989]
[null,null,null,null,null,1990]
[null,null,null,null,null,1991]
[null,null,null,null,null,1992]
[null,null,null,null,null,1993]
[null,null,null,null,null,1994]
[null,null,null,null,null,1995]
[null,null,null,null,null,1996]
[null,null,null,null,null,1997]
[null,null,null,null,null,1998]
[null,null,null,null,null,1999]
[null,null,null,null,null,2000]
[null,null,null,null,null,2001]
[null,null,null,null,null,2002]
[null,null,null,null,null,2003]
[null,null,null,null,null,2004]
[null,null,null,null,null,2005]
[null,null,null,null,null,2006]
[null,null,null,null,null,2007]
[null,null,null,null,null,2008]
[null,null,null,null,null,2009]
[null,null,null,null,null,2010]
[null,null,null,null,null,2011]
[null,null,null,null,null,2012]
[null,null,null,null,null,2013]
[null,null,null,null,null,2014]
[null,null,null,null,null,2015]
[null,null,null,null,null,2016]
[null,null,null,null,null,2017]
[null,null,null,null,null,2018]
[null,null,null,null,null,2019]
[null,null,null,null,null,2020]
[null,null,null,null,null,2021]
[null,null,null,null,null,2022]
[null,null,null,null,null,2023]
[null,null,null,null,null,2024]
[null,null,null,null,null,2025]
[null,null,null,null,null,2026]
[null,null,null,null,null,2027]
[null,null,null,null,null,2028]
[null,null,null,null,null,2029]
[null,null,null,null,null,2030]
[null,null,null,null,null,2031]
[null,null,null,null,null,2032]
[null,null,null,null,null,2033]
[null,null,null,null,null,2034]
[null,null,null,null,null,2035]
[null,null,null,null,null,2036]
[null,null,null,null,null,2037]
[null,null,null,null,null,2038]
[null,null,null,null,null,2039]
[null,null,null,null,null,2040]
[null,null,null,null,null,2041]
[null,null,null,null,null,2042]
[null,null,null,null,null,2043]
[null,null,null,null,null,2044]
[null,null,null,null,null,2045]
[null,null,null,null,null,2046]
[null,null,null,null,null,2047]
[null,null,null,null,null,2048]
[null,null,null,null,null,2049]
[null,null,null,null,null,2050]
[null,null,null,null,null,{"$f":"F2053+1","v":2051}]
[null,null,null,null,null,2052]
[null,null,null,null,null,2053]
[null,null,null,null,null,2054]
[null,null,null,null,null,2055]
[null,null,null,null,null,2056]
[null,null,null,null,null,2057]
[null,null,null,null,null,2058]
[null,null,null,null,null,2059]
[null,null,null,null,null,2060]
[null,null,null,null,null,2061]
[null,null,null,null,null,2062]
[null,null,null,null,null,2063]
[null,null,null,null,null,2064]
[null,null,null,null,null,2065]
[null,null,null,null,null,2066]
[null,null,null,null,null,2067]
[null,null,null,null,null,2068]
[null,null,null,null,null,2069]
[null,null,null,null,null,2070]
[null,null,null,null,null,2071]
[null,null,null,null,null,2072]
[null,null,null,null,null,2073]
[null,null,null,null,null,2074]
[null,null,null,null,null,2075]
[null,null,null,null,null,2076]
[null,null,null,null,null,2077]
[null,null,null,null,null,2078]
[null,null,null,null,null,2079]
[null,null,null,null,null,2080]
[null,null,null,null,null,2081]
[null,null,null,null,null,2082]
[null,null,null,null,null,2083]
[null,null,null,null,null,2084]
[null,null,null,null,null,2085]
[null,null,null,null,null,2086]
[null,null,null,null,null,2087]
[null,null,null,null,null,2088]
[null,null,null,null,null,2089]
[null,null,null,null,null,2090]
[null,null,null,null,null,2091]
[null,null,null,null,null,2092]
[null,null,null,null,null,2093]
[null,null,null,null,null,2094]
[null,null,null,null,null,2095]
[null,null,null,null,null,2096]
[null,null,null,null,null,2097]
[null,null,null,null,null,2098]
[null,null,null,null,null,2099]
[null,null,null,null,null,2100]
[null,null,null,null,null,2101]
[null,null,null,null,null,2102]
[null,null,null,null,null,2103]
[null,null,null,null,null,2104]
[null,null,null,null,null,2105]
[null,null,null,null,null,2106]
[null,null,null,null,null,2107]
[null,null,null,null,null,2108]
[null,null,null,null,null,2109]
[null,null,null,null,null,2110]
[null,null,null,null,null,2111]
[null,null,null,null,null,2112]
[null,null,null,null,null,2113]
[null,null,null,null,null,2114]
[null,null,null,null,null,{"$f":"F2117+1","v":2115}]
[null,null,null,null,null,2116]
[null,null,null,null,null,2117]
[null,null,null,null,null,2118]
[null,null,null,null,null,2119]
[null,null,null,null,null,2120]
[null,null,null,null,null,2121]
[null,null,null,null,null,2122]
[null,null,null,null,null,2123]
[null,null,null,null,null,2124]
[null,null,null,null,null,2125]
[null,null,null,null,null,2126]
[null,null,null,null,null,2127]
[null,null,null,null,null,2128]
[null,null,null,null,null,2129]
[null,null,null,null,null,2130]
[null,null,null,null,null,2131]
[null,null,null,null,null,2132]
[null,null,null,null,null,2133]
[null,null,null,null,null,2134]
[null,null,null,null,null,2135]
[null,null,null,null,null,2136]
[null,null,null,null,null,2137]
[null,null,null,null,null,2138]
[null,null,null,null,null,2139]
[null,null,null,null,null,2140]
[null,null,null,null,null,2141]
[null,null,null,null,null,2142]
[null,null,null,null,null,2143]
[null,null,null,null,null,2144]
[null,null,null,null,null,2145]
[null,null,null,null,null,2146]
[null,null,null,null,null,2147]
[null,null,null,null,null,2148]
[null,null,null,null,null,2149]
[null,null,null,null,null,2150]
[null,null,null,null,null,2151]
[null,null,null,null,null,2152]
[null,null,null,null,null,2153]
[null,null,null,null,null,2154]
[null,null,null,null,null,2155]
[null,null,null,null,null,2156]
[null,null,null,null,null,2157]
[null,null,null,null,null,2158]
[null,null,null,null,null,2159]
[null,null,null,null,null,2160]
[null,null,null,null,null,2161]
[null,null,null,null,null,2162]
[null,null,null,null,null,2163]
[null,null,null,null,null,2164]
[null,null,null,null,null,2165]
[null,null,null,null,null,2166]
[null,null,null,null,null,2167]
[null,null,null,null,null,2168]
[null,null,null,null,null,2169]
[null,null,null,null,null,2170]
[null,null,null,null,null,2171]
[null,null,null,null,null,2172]
[null,null,null,null,null,2173]
[null,null,null,null,null,2174]
[null,null,null,null,null,2175]
[null,null,null,null,null,2176]
[null,null,null,null,null,2177]
[null,null,null,null,null,2178]
[null,null,null,null,null,{"$f":"F2181+1","v":2179}]
[null,null,null,null,null,2180]
[null,null,null,null,null,2181]
[null,null,null,null,null,2182]
[null,null,null,null,null,2183]
[null,null,null,null,null,2184]
[null,null,null,null,null,2185]
[null,null,null,null,null,2186]
[null,null,null,null,null,2187]
[null,null,null,null,null,2188]
[null,null,null,null,null,2189]
[null,null,null,null,null,2190]
[null,null,null,null,null,2191]
[null,null,null,null,null,2192]
[null,null,null,null,null,2193]
[null,null,null,null,null,2194]
[null,null,null,null,null,2195]
[null,null,null,null,null,2196]
[null,null,null,null,null,2197]
[null,null,null,null,null,2198]
[null,null,null,null,null,2199]
[null,null,null,null,null,2200]
[null,null,null,null,null,2201]
[null,null,null,null,null,2202]
[null,null,null,null,null,2203]
[null,null,null,null,null,2204]
[null,null,null,null,null,2205]
[null,null,null,null,null,2206]
[null,null,null,null,null,2207]
[null,null,null,null,null,2208]
[null,null,null,null,null,2209]
[null,null,null,null,null,2210]
[null,null,null,null,null,2211]
[null,null,null,null,null,2212]
[null,null,null,null,null,2213]
[null,null,null,null,null,2214]
[null,null,null,null,null,2215]
[null,null,null,null,null,2216]
[null,null,null,null,null,2217]
[null,null,null,null,null,2218]
[null,null,null,null,null,2219]
[null,null,null,null,null,2220]
[null,null,null,null,null,2221]
[null,null,null,null,null,2222]
[null,null,null,null,null,2223]
[null,null,null,null,null,2224]
[null,null,null,null,null,2225]
[null,null,null,null,null,2226]
[null,null,null,null,null,2227]
[null,null,null,null,null,2228]
[null,null,null,null,null,2229]
[null,null,null,null,null,2230]
[null,null,null,null,null,2231]
[null,null,null,null,null,2232]
[null,null,null,null,null,2233]
[null,null,null,null,null,2234]
[null,null,null,null,null,2235]
[null,null,null,null,null,2236]
[null,null,null,null,null,2237]
[null,null,null,null,null,2238]
[null,null,null,null,null,2239]
[null,null,null,null,null,2240]
[null,null,null,null,null,2241]
[null,null,null,null,null,2242]
[null,null,null,null,null,{"$f":"F2245+1","v":2243}]
[null,null,null,null,null,2244]
[null,null,null,null,null,2245]
[null,null,null,null,null,2246]
[null,null,null,null,null,2247]
[null,null,null,null,null,2248]
[null,null,null,null,null,2249]
[null,null,null,null,null,2250]
[null,null,null,null,null,2251]
[null,null,null,null,null,2252]
[null,null,null,null,null,2253]
[null,null,null,null,null,2254]
[null,null,null,null,null,2255]
[null,null,null,null,null,2256]
[null,null,null,null,null,2257]
[null,null,null,null,null,2258]
[null,null,null,null,null,2259]
[null,null,null,null,null,2260]
[null,null,null,null,null,2261]
[null,null,null,null,null,2262]
[null,null,null,null,null,2263]
[null,null,null,null,null,2264]
[null,null,null,null,null,2265]
[null,null,null,null,null,2266]
[null,null,null,null,null,2267]
[null,null,null,null,null,2268]
[null,null,null,null,null,2269]
[null,null,null,null,null,2270]
[null,null,null,null,null,2271]
[null,null,null,null,null,2272]
[null,null,null,null,null,2273]
[null,null,null,null,null,2274]
[null,null,null,null,null,2275]
[null,null,null,null,null,2276]
[null,null,null,null,null,2277]
[null,null,null,null,null,2278]
[null,null,null,null,null,2279]
[null,null,null,null,null,2280]
[null,null,null,null,null,2281]
[null,null,null,null,null,2282]
[null,null,null,null,null,2283]
[null,null,null,null,null,2284]
[null,null,null,null,null,2285]
[null,null,null,null,null,2286]
[null,null,null,null,null,2287]
[null,null,null,null,null,2288]
[null,null,null,null,null,2289]
[null,null,null,null,null,2290]
[null,null,null,null,null,2291]
[null,null,null,null,null,2292]
[null,null,null,null,null,2293]
[null,null,null,null,null,2294]
[null,null,null,null,null,2295]
[null,null,null,null,null,2296]
[null,null,null,null,null,2297]
[null,null,null,null,null,2298]
[null,null,null,null,null,2299]
[null,null,null,null,null,2300]
[null,null,null,null,null,2301]
[null,null,null,null,null,2302]
[null,null,null,null,null,2303]
[null,null,null,null,null,2304]
[null,null,null,null,null,2305]
[null,null,null,null,null,2306]
[null,null,null,null,null,{"$f":"F2309+1","v":2307}]
[null,null,null,null,null,2308]
[null,null,null,null,null,2309]
[null,null,null,null,null,2310]
[null,null,null,null,null,2311]
[null,null,null,null,null,2312]
[null,null,null,null,null,2313]
[null,null,null,null,null,2314]
[null,null,null,null,null,2315]
[null,null,null,null,null,2316]
[null,null,null,null,null,2317]
[null,null,null,null,null,2318]
[null,null,null,null,null,2319]
[null,null,null,null,null,2320]
[null,null,null,null,null,2321]
[null,null,null,null,null,2322]
[null,null,null,null,null,2323]
[null,null,null,null,null,2324]
[null,null,null,null,null,2325]
[null,null,null,null,null,2326]
[null,null,null,null,null,2327]
[null,null,null,null,null,2328]
[null,null,null,null,null,2329]
[null,null,null,null,null,2330]
[null,null,null,null,null,2331]
[null,null,null,null,null,2332]
[null,null,null,null,null,2333]
[null,null,null,null,null,2334]
[null,null,null,null,null,2335]
[null,null,null,null,null,2336]
[null,null,null,null,null,2337]
[null,null,null,null,null,2338]
[null,null,null,null,null,2339]
[null,null,null,null,null,2340]
[null,null,null,null,null,2341]
[null,null,null,null,null,2342]
[null,null,null,null,null,2343]
[null,null,null,null,null,2344]
[null,null,null,null,null,2345]
[null,null,null,null,null,2346]
[null,null,null,null,null,2347]
[null,null,null,null,null,2348]
[null,null,null,null,null,2349]
[null,null,null,null,null,2350]
[null,null,null,null,null,2351]
[null,null,null,null,null,2352]
[null,null,null,null,null,2353]
[null,null,null,null,null,2354]
[null,null,null,null,null,2355]
[null,null,null,null,null,2356]
[null,null,null,null,null,2357]
[null,null,null,null,null,2358]
[null,null,null,null,null,2359]
[null,null,null,null,null,2360]
[null,null,null,null,null,2361]
[null,null,null,null,null,2362]
[null,null,null,null,null,2363]
[null,null,null,null,null,2364]
[null,null,null,null,null,2365]
[null,null,null,null,null,2366]
[null,null,null,null,null,2367]
[null,null,null,null,null,2368]
[null,null,null,null,null,2369]
[null,null,null,null,null,2370]
[null,null,null,null,null,{"$f":"F2373+1","v":2371}]
[null,null,null,null,null,2372]
[null,null,null,null,null,2373]
[null,null,null,null,null,2374]
[null,null,null,null,null,2375]
[null,null,null,null,null,2376]
[null,null,null,null,null,2377]
[null,null,null,null,null,2378]
[null,null,null,null,null,2379]
[null,null,null,null,null,2380]
[null,null,null,null,null,2381]
[null,null,null,null,null,2382]
[null,null,null,null,null,2383]
[null,null,null,null,null,2384]
[null,null,null,null,null,2385]
[null,null,null,null,null,2386]
[null,null,null,null,null,2387]
[null,null,null,null,null,2388]
[null,null,null,null,null,2389]
[null,null,null,null,null,2390]
[null,null,null,null,null,2391]
[null,null,null,null,null,2392]
[null,null,null,null,null,2393]
[null,null,null,null,null,2394]
[null,null,null,null,null,2395]
[null,null,null,null,null,2396]
[null,null,null,null,null,2397]
[null,null,null,null,null,2398]
[null,null,null,null,null,2399]
[null,null,null,null,null,2400]
[null,null,null,null,null,2401]
[null,null,null,null,null,2402]
[null,null,null,null,null,2403]
[null,null,null,null,null,2404]
[null,null,null,null,null,2405]
[null,null,null,null,null,2406]
[null,null,null,null,null,2407]
[null,null,null,null,null,2408]
[null,null,null,null,null,2409]
[null,null,null,null,null,2410]
[null,null,null,null,null,2411]
[null,null,null,null,null,2412]
[null,null,null,null,null,2413]
[null,null,null,null,null,2414]
[null,null,null,null,null,2415]
[null,null,null,null,null,2416]
[null,null,null,null,null,2417]
[null,null,null,null,null,2418]
[null,null,null,null,null,2419]
[null,null,null,null,null,2420]
[null,null,null,null,null,2421]
[null,null,null,null,null,2422]
[null,null,null,null,null,2423]
[null,null,null,null,null,2424]
[null,null,null,null,null,2425]
[null,null,null,null,null,2426]
[null,null,null,null,null,2427]
[null,null,null,null,null,2428]
[null,null,null,null,null,2429]
[null,null,null,null,null,2430]
[null,null,null,null,null,2431]
[null,null,null,null,null,2432]
[null,null,null,null,null,2433]
[null,null,null,null,null,2434]
[null,null,null,null,null,{"$f":"F2437+1","v":2435}]
[null,null,null,null,null,2436]
[null,null,null,null,null,2437]
[null,null,null,null,null,2438]
[null,null,null,null,null,2439]
[null,null,null,null,null,2440]
[null,null,null,null,null,2441]
[null,null,null,null,null,2442]
[null,null,null,null,null,2443]
[null,null,null,null,null,2444]
[null,null,null,null,null,2445]
[null,null,null,null,null,2446]
[null,null,null,null,null,2447]
[null,null,null,null,null,2448]
[null,null,null,null,null,2449]
[null,null,null,null,null,2450]
[null,null,null,null,null,2451]
[null,null,null,null,null,2452]
[null,null,null,null,null,2453]
[null,null,null,null,null,2454]
[null,null,null,null,null,2455]
[null,null,null,null,null,2456]
[null,null,null,null,null,2457]
[null,null,null,null,null,2458]
[null,null,null,null,null,2459]
[null,null,null,null,null,2460]
[null,null,null,null,null,2461]
[null,null,null,null,null,2462]
[null,null,null,null,null,2463]
[null,null,null,null,null,2464]
[null,null,null,null,null,2465]
[null,null,null,null,null,2466]
[null,null,null,null,null,2467]
[null,null,null,null,null,2468]
[null,null,null,null,null,2469]
[null,null,null,null,null,2470]
[null,null,null,null,null,2471]
[null,null,null,null,null,2472]
[null,null,null,null,null,2473]
[null,null,null,null,null,2474]
[null,null,null,null,null,2475]
[null,null,null,null,null,2476]
[null,null,null,null,null,2477]
[null,null,null,null,null,2478]
[null,null,null,null,null,2479]
[null,null,null,null,null,2480]
[null,null,null,null,null,2481]
[null,null,null,null,null,2482]
[null,null,null,null,null,2483]
[null,null,null,null,null,2484]
[null,null,null,null,null,2485]
[null,null,null,null,null,2486]
[null,null,null,null,null,2487]
[null,null,null,null,null,2488]
[null,null,null,null,null,2489]
[null,null,null,null,null,2490]
[null,null,null,null,null,2491]
[null,null,null,null,null,2492]
[null,null,null,null,null,2493]
[null,null,null,null,null,2494]
[null,null,null,null,null,2495]
[null,null,null,null,null,2496]
[null,null,null,null,null,2497]
[null,null,null,null,null,2498]
[null,null,null,null,null,{"$f":"F2501+1","v":2499}]
[null,null,null,null,null,2500]